Workbook

Sheet 0 Orientações Gerais
A3: Apresentação e Orientações Gerais sobre a Ferramenta
A4: Esta ferramenta compõe uma modelagem simplificada da metodologia de cálculo dos custos do serviço de manejo de resíduos sólidos urbanos e do valor básico de cálculo (VBC) das taxas ou tarifas devidas pela disposição e prestação desse serviço, conforme a regulação municipal e as diretrizes da Lei Federal nº 11.445/2007. Não devem integrar os custos dos serviços de manejo de resíduos sólidos urbanos as despesas e os gastos com atividades específicas e exclusivas do Serviço de Limpeza Urbana, tais como varrição de vias e logradouros públicos, podas de árvores e manutenção de praças e jardins, limpeza de bocas de lobo etc.
A5: A ferramenta pode ser aplicada para qualquer forma de prestação do serviço pelo Município, porém é recomendada principalmente para os casos de prestação direta por órgão da Administração Direta (Secretaria, Departamento, Divisão, Setor etc. da Prefeitura) ou por entidade da Administração Indireta (Autarquia ou Empresa Municipal).
A6: Esta ferramenta pode ser utilizada de duas formas: 1) Aplicação completa, utilizando todas as planilhas ou abas, identificadas abaixo com os números de 1 a 6, exceto a aba 5.2. Essa aplicação é recomendada quando houver informações financeiras e contábeis detalhadas e a prestação envolver diversas atividades, tais como coleta convencional, coleta seletiva, triagem, compostagem, transbordo, operação de aterro sanitário etc., ou quando o serviço for prestado por um único órgão ou entidade; ou 2) Aplicação simplificada, utilizando somente as planilhas (abas) números 1, 5.2 e 6 abaixo. Essa aplicação é recomendada quando não houver informações detalhadas das despesas dos serviços ou quando a prestação envolver somente as atividades de coleta de resíduos domiciliares (coleta de lixo) e operação de aterro sanitário. Qualquer que seja a forma escolhida, os campos da planilha "1 Identificação e Parâmetros" devem ser OBRIGATORIAMENTE preenchidos.
A7: Para facilitar sua aplicação, esta ferramenta tem duas planilhas (abas) auxiliares: a) Planilha 7, contendo um glossário explicativo das expressões e dos conceitos utilizados; b) Planilha 8, contendo orientações e tabelas auxiliares para levantamento de informações para o cálculo ou a estimação das despesas mais importantes para a composição do custo dos serviços, inclusive sobre o ativo imobilizado e cálculo da depreciação. Esta planilha também mostra uma tabela de parâmetros extraídos do Sistema Nacional de Informações sobre Saneamento (SNIS), mantido pela Secretaria Nacional de Saneamento do Ministério do Desenvolvimento Regional (SNSA/MDR). O glossário das expressões e as tabelas auxiliares podem ser acessados por meio de link marcado nos campos das planilhas em que estes elementos são utilizados.
A8: Acesse o Manual de Utilização da Planilha de Cálculo de Taxas ou Tarifas dos Serviços de Manejo de Resíduos Sólidos Urbanos disponível para download no site: https://www.gov.br/mdr/pt-br/assuntos/saneamento/protegeer
A9: Elaborado por: Ministério do Desenvolvimento Regional e Fundação Nacional da Saúde
A10: Por meio do: Ministério do Meio Ambiente, Proteção da Natureza e Segurança Nuclear da Alemanha, Deutsche Gesellschaft für Internationale Zusammenarbeit (GIZ) GmbH e Projeto de Cooperação para Proteção do Clima na Gestão de Resíduos Sólidos Urbanos - ProteGEEr
A11: Desenvolvedores (GOPA Infra-Adelphi): João Peixoto
A12: Equipe Técnica ProteGEEr (GOPA Infra-Adelphi): Jan Janssen, Guilherme Gonçalves e Rebeca Borges
A13: Contato: sanearbrasil@mdr.gov.br

Sheet 1 Identificação e Parâmetros
K3: Revisão | L3: 0 | M3: Data
A4: Elaborada por | D4: João B Peixoto | H4: Data | I4: 2021-11-17 | K4: Revisada por
B6: 1 | C6: Nome do Município e do Estado (UF) | F6: Município de Serra do Juda - MG | M6: Senha Provisória
B7: 2 | C7: Órgão ou entidade gestora do serviço | F7: Secretaria de Serviços Urbanos | M7: 12345
B8: 3 | C8: Regime e forma de prestação | F8: Prestação direta por órgão da Admnistração Direta | P8: ATENÇÃO: Preencher/alterar somente as células em verde.
B9: 4 | C9: Ano-base de cálculo dos custos (ano anterior ao de vigência da taxa ou tarifa) | K9: 2021
B10: 5 | C10: Parcela (%) da despesa de depreciação/exaustão dos ativos apropriada no custo do serviço | K10: ='9 Dados_Exerc_Ferramenta'!G29 -> 100.0%
B11: 6 | C11: Parcela (%) das despesas indiretas administrativas e de apoio apropriada no custo do serviço | K11: ='9 Dados_Exerc_Ferramenta'!G28 -> 10.0% | P11: Legenda de cores das células:
B12: 7 | C12: Parcela (%) do custo do serviço a ser cobrado dos usuários admitido pela política de cobrança | K12: ='9 Dados_Exerc_Ferramenta'!G26 -> 100.0%
B13: 8 | C13: Índice de reajuste para cálculo/estimativa do custo básico do ano atual | J13: INPC | K13: =((1+'9 Dados_Exerc_Ferramenta'!C25)*(1+'9 Dados_Exerc_Ferramenta'!D25))^(1/2)-1 -> 6.93% | Q13: Verde - Informação a ser fornecida pelo usuário
B14: 9 | C14: Base de aplicação do índice de reajuste | I14: =IF(J14=0," ",IF(J14="1 - Reajuste de todas parcelas",1,2)) -> 1 | J14: 1 - Reajuste de todas parcelas | Q14: Vermelho - Erro de cálculo nesta célula
B15: 10 | C15: Taxa de remuneração dos investimentos em operação (capital investido) | K15: ='9 Dados_Exerc_Ferramenta'!D26+'9 Dados_Exerc_Ferramenta'!H33 -> 6.45% | Q15: Amarelo - Resultado de cálculo
B16: 11 | C16: Fator de rateio da taxa ou tarifa | H16: 2. Quantidade de domicílios com coleta de RSU | Q16: Branco - Outros resultados de cálculo
B17: 12 | C17: Previsão de aumento da quantidade de economias/domicílios com abastecimento de água (%) | K17: ='9 Dados_Exerc_Ferramenta'!D7 -> 2.0% | Q17: Azul - Células de totalização, resultados de cálculo a medida que você alimenta os dados
B18: 13 | C18: Previsão de aumento da quantidade de domicílios com coleta de RSU (%) | K18: ='9 Dados_Exerc_Ferramenta'!D7 -> 2.0%
A19: SUMÁRIO (Clique no número da planilha ou da tabela para acessar) | B19: 14 | C19: Versão da ferramenta utilizada | I19: Versão Completa | K19: =IF(I19="Versão Completa","Ir para Aba 2"," ") -> Ir para Aba 2
A20: Planilhas e tabelas | K20: =IF(I19="Versão Simplificada","Ir para Aba 5.2"," ") -> 
A21: 2
A22: 3
A23: 4
A24: 5.1 | B24: Dados financeiros-contábeis dos serviços de manejo de resíduos
A25: 5.2 | B25: Informações complementares — ativos imobilizados e dados operacionais dos serviços
A26: 6 | B26: Dados sobre categorias e domicílios/usuários dos serviços de manejo de resíduos e de abastecimento de água
A27: 6.1 | B27: Versão completa — Cálculo do custo dos serviços e do Valor Básico de Cálculo (VBC) da Taxa/Tarifa de Manejo de Resíduos (TMRS)
A28: 6.2 | B28: Versão simplificada — Cálculo do custo dos serviços e do Valor Básico de Cálculo (VBC) da Taxa/Tarifa de Manejo de Resíduos (TMRS)
A29: 6.3 | B29: Tabelas referenciais de taxas ou tarifas de serviços de manejo de resíduos sólidos
A30: 6.4 | C30: Tabela 1 — Estrutura referencial de cálculo da TMRS com base na categoria dos imóveis e na frequência da coleta (Opção 1)
A31: 6.5 | C31: Tabela 2 — Estrutura referencial de cálculo da TMRS com base na categoria dos imóveis e na área construída (Opção 2)
A32: 7 | C32: Tabela 3 — Estrutura referencial de cálculo da TMRS com base na categoria dos imóveis, na frequência da coleta e no consumo de água (Opção 3)
A33: 8 | C33: Tabela 4 — Estrutura referencial de cálculo da TMRS com base na categoria dos imóveis e no volume de água consumida (Opção 4)
C34: Tabela 5 — Hipóteses de cobrança de tarifa pela prestação efetiva dos serviços de coleta e destinação final de resíduos domiciliares
B35: Glossário de termos, expressões e conceitos técnicos utilizados nesta ferramenta
B36: Orientações, parâmetros e modelos de tabelas auxiliares para levantamento e controle gerencial dos custos dos serviços

Sheet 2 DadosFinanServRSU
B1: RETORNAR AO SUMÁRIO
B2: Tabela 1 — Estrutura sintética das despesas com os serviços de manejo de resíduos | F2: Tabela 2 — Estrutura sintética da receita com os serviços de manejo de resíduos
B3: Planilha para coleta de informações das despesas no sistema de contabilidade (balancetes analíticos das despesas) e/ou em relatórios gerenciais de controle das despesas com os serviços. Esta planilha é recomendada quando houver outras atividades além da coleta e operação de aterro, quando o serviço for prestado por um único órgão ou autarquia municipal, ou quando existirem informações detalhadas por tipo/natureza da despesa. | F3: Tabela para coleta de informações das receitas dos serviços no sistema de contabilidade (balancetes analíticos das receitas) e/ou em relatórios gerenciais de controle das receitas lançadas e arrecadadas relativas aos serviços. +F7:F14
B4: ELEMENTOS DAS DESPESAS (principais grupos/subgrupos de contas) | C4: Valores | F4: ELEMENTOS DAS RECEITAS | G4: Valores
C5: Ano-Base | D5: Ano Atual | G5: Ano-Base | H5: Ano Atual
C6: ='1 Identificação e Parâmetros'!K9 -> 2021 | D6: =C6+1 -> 2022 | G6: =C6 -> 2021 | H6: =G6+1 -> 2022
B7: 1 Despesas com pessoal (proventos, encargos previdenciários e benefícios) | F7: 1. Receitas de taxas e tarifas — valores faturados/lançados no ano(1) | G7: 0 | H7: =G7/'4 Dados Cadastrais-USUÁRIOS'!C11*'4 Dados Cadastrais-USUÁRIOS'!D7*(1+'1 Identificação e Parâmetros'!K13) -> 0
B8: 1.1 Pessoal próprio (inclui cedido de outros órgãos) — Subtotal | C8: =SUM(C9:C13) -> 539,184.10 | D8: =SUM(D9:D13) -> 587,307.71 | F8: 2. Receitas de multas e encargos por inadimplência — valores lançados/provisionados no ano | G8: 0 | H8: =IF(G8=0,0,G8/G7*H7) -> 0
B9: 1.1.1 Administração central | C9: 0.00 | D9: =IF('1 Identificação e Parâmetros'!$I$14=1,'2 DadosFinanServRSU'!C9*(1+'1 Identificação e Parâmetros'!$K$13),0) -> 0.00 | F9: Sub-total — Receitas lançadas/provisionadas no ano (a) | G9: =SUM(G7:G8) -> 0 | H9: =SUM(H7:H8) -> 0
B10: 1.1.2 Central de operação da coleta (convencional e seletiva) | C10: ='9 Dados_Exerc_Ferramenta'!$H$3 -> 296,132.20 | D10: =IF('1 Identificação e Parâmetros'!$I$14=1,'2 DadosFinanServRSU'!C10*(1+'1 Identificação e Parâmetros'!$K$13+'9 Dados_Exerc_Ferramenta'!K3),0) -> 322,562.79 | F10: 3. Valores arrecadados no ano - receita corrente + dívida ativa de taxas e tarifas (2) | G10: 0 | H10: =IF(G10=0,0,G10/G7*H7) -> 0
B11: 1.1.3 Unidade de triagem, compostagem e processamento (ecopontos) | C11: 0.00 | D11: =IF('1 Identificação e Parâmetros'!$I$14=1,'2 DadosFinanServRSU'!C11*(1+'1 Identificação e Parâmetros'!$K$13),0) -> 0.00 | F11: 4. Valores arrecadados no ano relativos a multas e encargos (dívidas do ano e anteriores) | G11: 0 | H11: =IF(G11=0,0,G11/G10*H10) -> 0
B12: 1.1.4 Central de transbordo/triagem | C12: 0.00 | D12: =IF('1 Identificação e Parâmetros'!$I$14=1,'2 DadosFinanServRSU'!C12*(1+'1 Identificação e Parâmetros'!$K$13),0) -> 0.00 | F12: 5. Isenções e subsídios legais concedidos | G12: 0 | H12: =IF(G12=0,0,G12/G7*H7) -> 0
B13: 1.1.5 Central de tratamento ou aterro sanitário | C13: ='9 Dados_Exerc_Ferramenta'!$H$15 -> 243,051.90 | D13: =IF('1 Identificação e Parâmetros'!$I$14=1,'2 DadosFinanServRSU'!C13*(1+'1 Identificação e Parâmetros'!$K$13+'9 Dados_Exerc_Ferramenta'!K15),0) -> 264,744.93 | F13: Sub-total — Receita arrecadada + isenções e subsídios concedidos no ano (b) | G13: =SUM(G10:G12) -> 0 | H13: =SUM(H10:H12) -> 0
B14: 1.2 Pessoal contratado (mão de obra terceirizada) — Subtotal | C14: =SUM(C15:C19) -> 0.00 | D14: =SUM(D15:D19) -> 0.00 | F14: Receitas acessórias arrecadadas no ano - receita corrente + dívida ativa (2)
B15: 1.2.1 Administração central | C15: 0.00 | D15: =IF('1 Identificação e Parâmetros'!$I$14=1,'2 DadosFinanServRSU'!C15*(1+'1 Identificação e Parâmetros'!$K$13),0) -> 0.00 | F15: 6. Recebimento de RDO de grandes geradores no aterro ou central de tratamento | G15: 0 | H15: =G15*(1+'1 Identificação e Parâmetros'!$K$13) -> 0
B16: 1.2.2 Central de operação da coleta (convencional e seletiva) | C16: 0.00 | D16: =IF('1 Identificação e Parâmetros'!$I$14=1,'2 DadosFinanServRSU'!C16*(1+'1 Identificação e Parâmetros'!$K$13),0) -> 0.00 | F16: 7. Recebimento de RCC no aterro ou central de tratamento | G16: 0 | H16: =G16*(1+'1 Identificação e Parâmetros'!$K$13) -> 0
B17: 1.2.3 Unidade de triagem, compostagem e processamento (ecopontos) | C17: 0.00 | D17: =IF('1 Identificação e Parâmetros'!$I$14=1,'2 DadosFinanServRSU'!C17*(1+'1 Identificação e Parâmetros'!$K$13),0) -> 0.00 | F17: 8. Recebimento de resíduos volumosos no aterro ou central de tratamento | G17: 0 | H17: =G17*(1+'1 Identificação e Parâmetros'!$K$13) -> 0
B18: 1.2.4 Central de transbordo/triagem | C18: 0.00 | D18: =IF('1 Identificação e Parâmetros'!$I$14=1,'2 DadosFinanServRSU'!C18*(1+'1 Identificação e Parâmetros'!$K$13),0) -> 0.00 | F18: 9. Recebimento e tratamento de RSS no aterro ou central de tratamento | G18: 0 | H18: =G18*(1+'1 Identificação e Parâmetros'!$K$13) -> 0
B19: 1.2.5 Central de tratamento ou aterro sanitário | C19: 0.00 | D19: =IF('1 Identificação e Parâmetros'!$I$14=1,'2 DadosFinanServRSU'!C19*(1+'1 Identificação e Parâmetros'!$K$13),0) -> 0.00 | F19: 10. Venda de composto orgânico e materiais recicláveis | G19: 0 | H19: =G19*(1+'1 Identificação e Parâmetros'!$K$13) -> 0
B20: 2 Serviços de terceiros (não inclui pessoal/mão de obra contratada ) — Subtotal | C20: =SUM(C21:C27) -> 52,725.00 | D20: =SUM(D21:D27) -> 56,376.35 | F20: Sub-total — Receitas acessórias arrecadadas no ano (c) | G20: =SUM(G15:G19) -> 0 | H20: =SUM(H15:H19) -> 0
B21: 2.1 Serviços administrativos, limpeza e conservação predial | C21: 0.00 | D21: =IF('1 Identificação e Parâmetros'!$I$14=1,'2 DadosFinanServRSU'!C21*(1+'1 Identificação e Parâmetros'!$K$13),0) -> 0.00 | F21: 11. Receitas de aplicações financeiras | G21: 0 | H21: =G21*(1+'1 Identificação e Parâmetros'!$K$13) -> 0
B22: 2.2 Serviços de coleta domiciliar convencional | C22: 52,725.00 | D22: =IF('1 Identificação e Parâmetros'!$I$14=1,'2 DadosFinanServRSU'!C22*(1+'1 Identificação e Parâmetros'!$K$13),0) -> 56,376.35 | F22: 12. Receitas extraordinárias (indenizações recebidas) | G22: 0 | H22: =G22*(1+'1 Identificação e Parâmetros'!$K$13) -> 0
B23: 2.3 Serviços de coleta seletiva | C23: 0.00 | D23: =IF('1 Identificação e Parâmetros'!$I$14=1,'2 DadosFinanServRSU'!C23*(1+'1 Identificação e Parâmetros'!$K$13),0) -> 0.00 | F23: 13. Alienação/venda de bens patrimoniais | G23: 0 | H23: =G23*(1+'1 Identificação e Parâmetros'!$K$13) -> 0
B24: 2.4 Serviços de operação de unidade de triagem e compostagem e ecopontos | C24: 0.00 | D24: =IF('1 Identificação e Parâmetros'!$I$14=1,'2 DadosFinanServRSU'!C24*(1+'1 Identificação e Parâmetros'!$K$13),0) -> 0.00 | F24: 14. Outras receitas dos serviços (especificar) | G24: 0 | H24: =G24*(1+'1 Identificação e Parâmetros'!$K$13) -> 0
B25: 2.5 Serviços de operação de unidade de transbordo e transporte | C25: 0.00 | D25: =IF('1 Identificação e Parâmetros'!$I$14=1,'2 DadosFinanServRSU'!C25*(1+'1 Identificação e Parâmetros'!$K$13),0) -> 0.00 | F25: Sub-total — Outras receitas no ano (d) | G25: =SUM(G21:G24) -> 0 | H25: =SUM(H21:H24) -> 0
B26: 2.6 Serviços de operação de central de tratamento ou aterro sanitário | C26: 0.00 | D26: =IF('1 Identificação e Parâmetros'!$I$14=1,'2 DadosFinanServRSU'!C26*(1+'1 Identificação e Parâmetros'!$K$13),0) -> 0.00 | F26: 15. Repasses orçamentários do Tesouro Municipal (e) | G26: 0 | H26: 0
B27: 2.7 Disposição de resíduos em unidades de transbordo ou central de tratamento de terceiros | C27: 0.00 | D27: =IF('1 Identificação e Parâmetros'!$I$14=1,'2 DadosFinanServRSU'!C27*(1+'1 Identificação e Parâmetros'!$K$13),0) -> 0.00 | F27: 16. Empréstimos realizados — desembolsos recebidos no ano (f) | G27: 0 | H27: 0
B28: 3 Aluguel de imóveis — Subtotal | C28: =SUM(C29:C32) -> 0.00 | D28: =SUM(D29:D32) -> 0.00 | F28: 17. Subvenções recebidas (repasses e doações de entes públicos e privados)(3) (g) | G28: 0 | H28: 0
B29: 3.1 Administração central | C29: 0.00 | D29: =IF('1 Identificação e Parâmetros'!$I$14=1,'2 DadosFinanServRSU'!C29*(1+'1 Identificação e Parâmetros'!$K$13),0) -> 0.00 | F29: Total - Receitas correntes e de capital (b+c+d+e+f+g) | G29: =G13+G20+G25+G26+G27+G28 -> 0 | H29: =H13+H20+H25+H26+H27+H28 -> 0
B30: 3.2 Central de operação da coleta (convencional e seletiva) | C30: 0.00 | D30: =IF('1 Identificação e Parâmetros'!$I$14=1,'2 DadosFinanServRSU'!C30*(1+'1 Identificação e Parâmetros'!$K$13),0) -> 0.00 | F30: Fontes: Relatórios contábeis e gerenciais do prestador
B31: 3.3 Galpão/área de triagem, compostagem e processamento (ecopontos) | C31: 0.00 | D31: =IF('1 Identificação e Parâmetros'!$I$14=1,'2 DadosFinanServRSU'!C31*(1+'1 Identificação e Parâmetros'!$K$13),0) -> 0.00 | F31: NOTAS
B32: 3.4 Central de transbordo/triagem | C32: 0.00 | D32: =IF('1 Identificação e Parâmetros'!$I$14=1,'2 DadosFinanServRSU'!C32*(1+'1 Identificação e Parâmetros'!$K$13),0) -> 0.00 | F32: 1. Considerar somente receitas diretas dos serviços (taxas ou tarifas) — Não incluir receitas de serviços acessórios
B33: 4 Aluguel de veículos, máquinas e equipamentos — Subtotal | C33: =SUM(C34:C39) -> 0.00 | D33: =SUM(D34:D39) -> 0.00 | F33: 2. Não incluir arrecadação de multas e de encargos por inadimplência
B34: 4.1 Uso geral (administração e apoio operacional) | C34: 0.00 | D34: =IF('1 Identificação e Parâmetros'!$I$14=1,'2 DadosFinanServRSU'!C34*(1+'1 Identificação e Parâmetros'!$K$13),0) -> 0.00 | F34: 3. Doações e subvenções destinadas/vinculadas especificamente aos serviços (custeio ou investimentos)
B35: 4.2 Coleta convencional | C35: 0.00 | D35: =IF('1 Identificação e Parâmetros'!$I$14=1,'2 DadosFinanServRSU'!C35*(1+'1 Identificação e Parâmetros'!$K$13),0) -> 0.00
B36: 4.3 Coleta seletiva | C36: 0.00 | D36: =IF('1 Identificação e Parâmetros'!$I$14=1,'2 DadosFinanServRSU'!C36*(1+'1 Identificação e Parâmetros'!$K$13),0) -> 0.00
B37: 4.4 Unidade de triagem, compostagem e processamento (ecopontos) | C37: 0.00 | D37: =IF('1 Identificação e Parâmetros'!$I$14=1,'2 DadosFinanServRSU'!C37*(1+'1 Identificação e Parâmetros'!$K$13),0) -> 0.00
B38: 4.5 Transbordo e transporte | C38: 0.00 | D38: =IF('1 Identificação e Parâmetros'!$I$14=1,'2 DadosFinanServRSU'!C38*(1+'1 Identificação e Parâmetros'!$K$13),0) -> 0.00
B39: 4.6 Central de tratamento ou aterro sanitário | C39: 0.00 | D39: =IF('1 Identificação e Parâmetros'!$I$14=1,'2 DadosFinanServRSU'!C39*(1+'1 Identificação e Parâmetros'!$K$13),0) -> 0.00
B40: 5 Combustível e manutenção de veículos, máquinas e equipamentos — Subtotal | C40: =SUM(C41:C46) -> 91,983.50 | D40: =SUM(D41:D46) -> 102,032.94
B41: 5.1 Uso geral (administração e apoio operacional) | C41: 0.00 | D41: =IF('1 Identificação e Parâmetros'!$I$14=1,'2 DadosFinanServRSU'!C41*(1+'1 Identificação e Parâmetros'!$K$13),0) -> 0.00
B42: 5.2 Coleta convencional | C42: ='9 Dados_Exerc_Ferramenta'!$H$8+'9 Dados_Exerc_Ferramenta'!$H$9 -> 49,852.50 | D42: =IF('1 Identificação e Parâmetros'!$I$14=1,'2 DadosFinanServRSU'!C42*(1+'1 Identificação e Parâmetros'!$K$13+'9 Dados_Exerc_Ferramenta'!K8),0) -> 55,299.02
B43: 5.3 Coleta seletiva | C43: 0.00 | D43: =IF('1 Identificação e Parâmetros'!$I$14=1,'2 DadosFinanServRSU'!C43*(1+'1 Identificação e Parâmetros'!$K$13),0) -> 0.00
B44: 5.4 Unidade de triagem, compostagem e processamento (ecopontos) | C44: 0.00 | D44: =IF('1 Identificação e Parâmetros'!$I$14=1,'2 DadosFinanServRSU'!C44*(1+'1 Identificação e Parâmetros'!$K$13),0) -> 0.00
B45: 5.5 Transbordo e transporte | C45: 0.00 | D45: =IF('1 Identificação e Parâmetros'!$I$14=1,'2 DadosFinanServRSU'!C45*(1+'1 Identificação e Parâmetros'!$K$13),0) -> 0.00
B46: 5.6 Central de tratamento ou aterro sanitário | C46: ='9 Dados_Exerc_Ferramenta'!$H$20+'9 Dados_Exerc_Ferramenta'!$H$21 -> 42,131.00 | D46: =IF('1 Identificação e Parâmetros'!$I$14=1,'2 DadosFinanServRSU'!C46*(1+'1 Identificação e Parâmetros'!$K$13+'9 Dados_Exerc_Ferramenta'!K20),0) -> 46,733.92
B47: 6 Energia elétrica — Subtotal | C47: =SUM(C48:C52) -> 0.00 | D47: =SUM(D48:D52) -> 0.00
B48: 6.1 Administração central | C48: 0.00 | D48: =IF('1 Identificação e Parâmetros'!$I$14=1,'2 DadosFinanServRSU'!C48*(1+'1 Identificação e Parâmetros'!$K$13),0) -> 0.00
B49: 6.2 Central de operação da coleta (convencional e seletiva) | C49: 0.00 | D49: =IF('1 Identificação e Parâmetros'!$I$14=1,'2 DadosFinanServRSU'!C49*(1+'1 Identificação e Parâmetros'!$K$13),0) -> 0.00
B50: 6.3 Unidade de triagem, compostagem e processamento (ecopontos) | C50: 0.00 | D50: =IF('1 Identificação e Parâmetros'!$I$14=1,'2 DadosFinanServRSU'!C50*(1+'1 Identificação e Parâmetros'!$K$13),0) -> 0.00
B51: 6.4 Central de transbordo/triagem | C51: 0.00 | D51: =IF('1 Identificação e Parâmetros'!$I$14=1,'2 DadosFinanServRSU'!C51*(1+'1 Identificação e Parâmetros'!$K$13),0) -> 0.00
B52: 6.5 Central de tratamento ou aterro sanitário | C52: 0.00 | D52: =IF('1 Identificação e Parâmetros'!$I$14=1,'2 DadosFinanServRSU'!C52*(1+'1 Identificação e Parâmetros'!$K$13),0) -> 0.00
B53: 7 Materiais de consumo — Subtotal | C53: =SUM(C54:C58) -> 0.00 | D53: =SUM(D54:D58) -> 0.00
B54: 7.1 Administração central | C54: 0.00 | D54: =IF('1 Identificação e Parâmetros'!$I$14=1,'2 DadosFinanServRSU'!C54*(1+'1 Identificação e Parâmetros'!$K$13),0) -> 0.00
B55: 7.2 Central de operação da coleta (convencional e seletiva) | C55: 0.00 | D55: =IF('1 Identificação e Parâmetros'!$I$14=1,'2 DadosFinanServRSU'!C55*(1+'1 Identificação e Parâmetros'!$K$13),0) -> 0.00
B56: 7.3 Unidade de triagem, compostagem e processamento (ecopontos) | C56: 0.00 | D56: =IF('1 Identificação e Parâmetros'!$I$14=1,'2 DadosFinanServRSU'!C56*(1+'1 Identificação e Parâmetros'!$K$13),0) -> 0.00
B57: 7.4 Central de transbordo/triagem | C57: 0.00 | D57: =IF('1 Identificação e Parâmetros'!$I$14=1,'2 DadosFinanServRSU'!C57*(1+'1 Identificação e Parâmetros'!$K$13),0) -> 0.00
B58: 7.5 Central de tratamento ou aterro sanitário | C58: 0.00 | D58: =IF('1 Identificação e Parâmetros'!$I$14=1,'2 DadosFinanServRSU'!C58*(1+'1 Identificação e Parâmetros'!$K$13),0) -> 0.00
B59: 8 Despesas com a cobrança e arrecadação de taxas e tarifas | C59: ='9 Dados_Exerc_Ferramenta'!$C$15*'9 Dados_Exerc_Ferramenta'!$G$34*12 -> 141,590.40 | D59: =IF('1 Identificação e Parâmetros'!$I$14=1,'2 DadosFinanServRSU'!C59*(1+'1 Identificação e Parâmetros'!$K$13),0) -> 151,395.91
B60: 9 Despesas diversas | C60: ='9 Dados_Exerc_Ferramenta'!$H$10+'9 Dados_Exerc_Ferramenta'!$H$22 -> 29,200.00 | D60: =IF('1 Identificação e Parâmetros'!$I$14=1,'2 DadosFinanServRSU'!C60*(1+'1 Identificação e Parâmetros'!$K$13),0) -> 31,222.18
B61: 10 Despesas extraordinárias ou eventuais | C61: 0.00 | D61: =IF('1 Identificação e Parâmetros'!$I$14=1,'2 DadosFinanServRSU'!C61*(1+'1 Identificação e Parâmetros'!$K$13),0) -> 0.00
B62: 11 Provisões de despesas contingentes — cíveis e trabalhistas, desativação de aterro | C62: 0.00 | D62: =IF('1 Identificação e Parâmetros'!$I$14=1,'2 DadosFinanServRSU'!C62*(1+'1 Identificação e Parâmetros'!$K$13),0) -> 0.00
B63: Total das despesas administrativas e operacionais (A) | C63: =SUM(C8,C14,C20,C28,C33,C40,C47,C53,C59,C60,C61,C62) -> 854,683.00 | D63: =SUM(D8,D14,D20,D28,D33,D40,D47,D53,D59,D60,D61,D62,D62) -> 928,335.09
B64: 12 Despesas indiretas | C64: =C63*E64 -> 85,468.30 | D64: =D63*E64 -> 92,833.51 | E64: ='1 Identificação e Parâmetros'!K11 -> 10%
B65: 13 Despesas de depreciação e exaustão de ativos (B) | C65: =SUM(C66:C70) -> 105,400.00 | D65: =SUM(D66:D70) -> 110,150.00
B66: Depreciação de ativos do sistema de coleta convencional e seletiva | C66: =-'3 Dados-Complementares'!F8+'3 Dados-Complementares'!E8-'3 Dados-Complementares'!F10+'3 Dados-Complementares'!E10-'3 Dados-Complementares'!F12+'3 Dados-Complementares'!E12 -> 25,000.00 | D66: =-'3 Dados-Complementares'!G8+'3 Dados-Complementares'!F8-'3 Dados-Complementares'!G10+'3 Dados-Complementares'!F10-'3 Dados-Complementares'!G12+'3 Dados-Complementares'!F12 -> 25,000.00
B67: Depreciação de ativos de unidades de processamento (triagem, compostagem), ecopontos | C67: =-'3 Dados-Complementares'!F15+'3 Dados-Complementares'!E15-'3 Dados-Complementares'!F17+'3 Dados-Complementares'!E17-'3 Dados-Complementares'!F19+'3 Dados-Complementares'!E19 -> 0.00 | D67: =-'3 Dados-Complementares'!G15+'3 Dados-Complementares'!F15-'3 Dados-Complementares'!G17+'3 Dados-Complementares'!F17-'3 Dados-Complementares'!G19+'3 Dados-Complementares'!F19 -> 0.00
B68: Depreciação de ativos de unidades de transbordo e transporte | C68: =-'3 Dados-Complementares'!F22+'3 Dados-Complementares'!E22-'3 Dados-Complementares'!F24+'3 Dados-Complementares'!E24-'3 Dados-Complementares'!F26+'3 Dados-Complementares'!E26 -> 0.00 | D68: =-'3 Dados-Complementares'!G22+'3 Dados-Complementares'!F22-'3 Dados-Complementares'!G24+'3 Dados-Complementares'!F24-'3 Dados-Complementares'!G26+'3 Dados-Complementares'!F26 -> 0.00
B69: Depreciação e exaustão de ativos da central de tratamento ou aterro sanitário | C69: =-'3 Dados-Complementares'!F29+'3 Dados-Complementares'!E29-'3 Dados-Complementares'!F31+'3 Dados-Complementares'!E31-'3 Dados-Complementares'!F33+'3 Dados-Complementares'!E33-'3 Dados-Complementares'!F35+'3 Dados-Complementares'!E35-'3 Dados-Complementares'!F37+'3 Dados-Complementares'!E37 -> 80,400.00 | D69: =-'3 Dados-Complementares'!G29+'3 Dados-Complementares'!F29-'3 Dados-Complementares'!G31+'3 Dados-Complementares'!F31-'3 Dados-Complementares'!G33+'3 Dados-Complementares'!F33-'3 Dados-Complementares'!G35+'3 Dados-Complementares'!F35-'3 Dados-Complementares'!G37+'3 Dados-Complementares'!F37 -> 85,150.00
B70: Depreciação de bens de uso geral e da administração central e unidades de apoio técnico | C70: =-'3 Dados-Complementares'!F40+'3 Dados-Complementares'!E40-'3 Dados-Complementares'!F42+'3 Dados-Complementares'!E42-'3 Dados-Complementares'!F44+'3 Dados-Complementares'!E44 -> 0.00 | D70: =-'3 Dados-Complementares'!G40+'3 Dados-Complementares'!F40-'3 Dados-Complementares'!G42+'3 Dados-Complementares'!F42-'3 Dados-Complementares'!G44+'3 Dados-Complementares'!F44 -> 0.00
B71: 14 Despesas financeiras — juros e encargos de empréstimos (C) | C71: 0.00 | D71: 0.00
B72: 15 PIS/PASEP — sobre receitas do serviço RSU (D) | C72: =SUM(C63,C64,C65,C71)/0.99*0.01 -> 10,561.12 | D72: =SUM(D63,D64,D65,D71)/0.99*0.01 -> 11,427.46
B73: 16 Despesas de regulação e fiscalização dos serviços (E) | C73: 0.00 | D73: 0.00
B74: Custo Contábil Total dos Serviços (A+B+C+D+E) | C74: =C63+C64+C65+C71+C72+C73 -> 1,056,112.42 | D74: =D63+D64+D65+D71+D72+D73 -> 1,142,746.06
B75: Fontes: Relatórios contábeis e gerenciais do prestador

Sheet 3 Dados-Complementares
B1: RETORNAR AO SUMÁRIO
B2: Tabela 1 — Estrutura sintética de dados financeiro-contábeis dos ativos imobilizados | H2: Taxas de depreciação, amortização e exaustão sugeridas (% por ano)
B3: Nesta tabela, devem ser informados os valores acumulados de aquisição, construção ou implantação dos bens que compõem os ativos imobilizados vinculados à prestação do serviço, bem como os respectivos valores acumulados de depreciação, amortização ou exaustão. | E3: Valores
E4: Saldo anterior | F4: Ano-base | G4: Ano atual
B5: Centros de custos | C5: Alocações (bens) | D5: Elementos contábeis | E5: =F5-1 -> 2,020 | F5: ='1 Identificação e Parâmetros'!K9 -> 2,021 | G5: =F5+1 -> 2,022
B6: Atividades de Coleta de Resíduos | C6: Terrenos | D6: Valor de aquisição acumulado | E6: 0 | F6: 0 | G6: 0
C7: Edificações e instalações | D7: Valor de aquisição/construção acumulado | E7: 0 | F7: 0 | G7: 0
D8: (-) Valor da depreciação acumulada | E8: 0 | F8: 0 | G8: =F8-(F7+G7)/2*$H8 -> 0 | H8: 2%
C9: Veículos, máquinas e equipamentos operacionais | D9: Valor de aquisição acumulado | E9: ='9 Dados_Exerc_Ferramenta'!$B$44 -> 250,000 | F9: =E9 -> 250,000 | G9: =F9 -> 250,000
D10: (-) Valor da depreciação acumulada | E10: =-E9*55% -> -137,500 | F10: =E10-F9*H10 -> -162,500 | G10: =F10-(F9+G9)/2*$H$10 -> -187,500 | H10: 10%
C11: Mobiliários e outros bens móveis | D11: Valor de aquisição acumulado | E11: 0 | F11: 0 | G11: 0
D12: (-) Valor da depreciação acumulada | E12: 0 | F12: 0 | G12: =F12-(F11+G11)/2*H12 -> 0 | H12: 10%
B13: Unidades de Processamento de Resíduos (triagem, compostagem, outros) | C13: Terrenos | D13: Valor de aquisição acumulado | E13: 0 | F13: 0 | G13: 0
C14: Edificações e instalações | D14: Valor de aquisição/construção acumulado | E14: 0 | F14: 0 | G14: 0
D15: (-) Valor da depreciação acumulada | E15: 0 | F15: 0 | G15: =F15-(F14+G14)/2*H15 -> 0 | H15: 2%
C16: Veículos, máquinas e equipamentos operacionais | D16: Valor de aquisição acumulado | E16: 0 | F16: 0 | G16: 0
D17: (-) Valor da depreciação acumulada | E17: 0 | F17: 0 | G17: =F17-(F16+G16)/2*H17 -> 0 | H17: 10%
C18: Mobiliários e outros bens móveis | D18: Valor de aquisição acumulado | E18: 0 | F18: 0 | G18: 0
D19: (-) Valor da depreciação acumulada | E19: 0 | F19: 0 | G19: =F19-(F18+G18)/2*H19 -> 0 | H19: 10%
B20: Unidades de Transbordo e Transporte para Central de Tratamento | C20: Terrenos | D20: Valor de aquisição acumulado | E20: 0 | F20: 0 | G20: 0
C21: Edificações e instalações de Transbordo | D21: Valor de aquisição/construção acumulado | E21: 0 | F21: 0 | G21: 0
D22: (-) Valor da depreciação/exaustão acumulada | E22: 0 | F22: 0 | G22: =F22-(F21+G21)/2*H22 -> 0 | H22: 2%
C23: Veículos, máquinas e equipamentos operacionais | D23: Valor de aquisição acumulado | E23: 0 | F23: 0 | G23: 0
D24: (-) Valor da depreciação acumulada | E24: 0 | F24: 0 | G24: =F24-(F23+G23)/2*H24 -> 0 | H24: 10%
C25: Mobiliários e outros bens móveis | D25: Valor de aquisição acumulado | E25: 0 | F25: 0 | G25: 0
D26: (-) Valor da depreciação acumulada | E26: 0 | F26: 0 | G26: =F26-(F25+G25)/2*H26 -> 0 | H26: 10%
B27: Unidades de Disposição Final (central de tratamento, aterro sanitário) | C27: Terrenos - uso permanente | D27: Valor de aquisição acumulado | E27: 0 | F27: 0 | G27: 0
C28: Edificações e instalações de uso permanente | D28: Valor de aquisição/construção acumulado | E28: ='9 Dados_Exerc_Ferramenta'!$B$36+'9 Dados_Exerc_Ferramenta'!$B$37+'9 Dados_Exerc_Ferramenta'!$B$38 -> 120,000 | F28: =E28 -> 120,000 | G28: =F28 -> 120,000
D29: (-) Valor da depreciação acumulada | E29: =-E28*H29 -> -6,000 | F29: =E29-F28*H29 -> -12,000 | G29: =F29-(F28+G28)/2*H29 -> -18,000 | H29: 5%
C30: Terreno e instalações Aterro Sanitário (exaustão/amortiz.) | D30: Valor de aquisição/construção acumulado | E30: ='9 Dados_Exerc_Ferramenta'!$B$34+'9 Dados_Exerc_Ferramenta'!$B$35 -> 325,000 | F30: =E30 -> 325,000 | G30: =F30 -> 325,000
D31: (-) Valor da depreciação acumulada | E31: =-E30*H31 -> -16,250 | F31: =E31-F30*H31 -> -32,500 | G31: =F31-(F30+G30)/2*H31 -> -48,750 | H31: 5%
C32: Células individuais de aterramento | D32: Valor de construção acumulado | E32: ='9 Dados_Exerc_Ferramenta'!$B$39 -> 65,500 | F32: =E32 -> 65,500 | G32: =F32+'9 Dados_Exerc_Ferramenta'!$B$41 -> 140,500
D33: (-) Valor da depreciação acumulada | E33: =-E32*H33 -> -32,750 | F33: =E33-F32*H33 -> -65,500 | G33: =-(G32-F33)*H33 -> -103,000 | H33: 50%
C34: Veículos, máquinas e equipamentos operacionais | D34: Valor de aquisição acumulado | E34: ='9 Dados_Exerc_Ferramenta'!$B$45*60%+'9 Dados_Exerc_Ferramenta'!$B$46*40% -> 254,000 | F34: =E34 -> 254,000 | G34: =F34 -> 254,000
D35: (-) Valor da depreciação acumulada | E35: =-('9 Dados_Exerc_Ferramenta'!$B$45*60%*40%+'9 Dados_Exerc_Ferramenta'!$B$46*40%*30%) -> -94,800 | F35: =E35-F34*H35 -> -120,200 | G35: =F35-(F34+G34)/2*H35 -> -145,600 | H35: 10%
C36: Mobiliários e outros bens móveis | D36: Valor de aquisição acumulado | E36: 0 | F36: 0 | G36: 0
D37: (-) Valor da depreciação acumulada | E37: 0 | F37: 0 | G37: =F37-(F36+G36)/2*H37 -> 0 | H37: 10%
B38: Bens de Uso Geral do Serviço RSU — Administrativos e Operacionais | C38: Bens imóveis (terrenos) | D38: Valor de aquisição acumulado | E38: 0 | F38: 0 | G38: 0
C39: Bens imóveis (edificações e instalações) | D39: Valor de aquisição acumulado | E39: 0 | F39: 0 | G39: 0
D40: (-) Valor da depreciação acumulada | E40: 0 | F40: 0 | G40: =F40-(F39+G39)/2*H40 -> 0 | H40: 2%
C41: Veículos, máquinas e equipamentos operacionais | D41: Valor de aquisição acumulado | E41: 0 | F41: 0 | G41: 0
D42: (-) Valor da depreciação acumulada | E42: 0 | F42: 0 | G42: =F42-(F41+G41)/2*H42 -> 0 | H42: 10%
C43: Mobiliários e outros bens móveis | D43: Valor de aquisição acumulado | E43: 0 | F43: 0 | G43: 0
D44: (-) Valor da depreciação acumulada | E44: 0 | F44: 0 | G44: =F44-(F43+G43)/2*H44 -> 0 | H44: 10%
B45: TOTAIS | C45: Ativos imobilizados totais | D45: Valor de aquisição acumulado | E45: =E6+E7+E9+E11+E13+E14+E16+E18+E20+E21+E23+E25+E27+E28+E30+E32+E34+E36+E38+E39+E41+E43 -> 1,014,500 | F45: =F6+F7+F9+F11+F13+F14+F16+F18+F20+F21+F23+F25+F27+F28+F30+F32+F34+F36+F38+F39+F41+F43 -> 1,014,500 | G45: =G6+G7+G9+G11+G13+G14+G16+G18+G20+G21+G23+G25+G27+G28+G30+G32+G34+G36+G38+G39+G41+G43 -> 1,089,500
D46: (-) Valor de depreciação/exaustão acumulado | E46: =E8+E10+E12+E15+E17+E19+E22+E24+E26+E29+E31+E33+E35+E37+E40+E42+E44 -> -287,300 | F46: =F8+F10+F12+F15+F17+F19+F22+F24+F26+F29+F31+F33+F35+F37+F40+F42+F44 -> -392,700 | G46: =G8+G10+G12+G15+G17+G19+G22+G24+G26+G29+G31+G33+G35+G37+G40+G42+G44 -> -502,850
C47: Ativos imobilizados — Saldo Líquido | E47: =E45+E46 -> 727,200 | F47: =F45+F46 -> 621,800 | G47: =G45+G46 -> 586,650
B48: Fonte: balancete analítico do ativo (se estiver adequado às novas normas de contabilidade pública) ou sistema de controle patrimonial
B50: Tabela 2 — INFORMAÇÕES OPERACIONAIS
B51: Quantidade de resíduos movimentados | F51: ='1 Identificação e Parâmetros'!K9 -> 2021 | G51: =F51+1 -> 2022
B52: Massa de resíduos coletada — Total (ton) | F52: =SUM(F53:F55) -> 2,619 | G52: =SUM(G53:G55) -> 2,666
B53: Massa de RDO coletada ANUALMENTE (coleta convencional) (ton) | F53: ='9 Dados_Exerc_Ferramenta'!$C$17 -> 2,619 | G53: ='9 Dados_Exerc_Ferramenta'!$D$17 -> 2,666
B54: Massa de resíduos recicláveis coletada ANUALMENTE (coleta seletiva) (ton)
B55: Massa de RPU coletada ANUALMENTE (varrição, entulhos e outros) (ton)
B56: Massa de resíduos entregues pelos geradores diretamente na central de tratamento (ton)
B57: Massa de resíduos entregues pelos geradores diretamente em unidades de triagem/processamento (ton)
B58: Massa de resíduos recuperados nas unidades de triagem/processamento (ton)
B59: Massa TOTAL de resíduos destinados a unidades de transbordo (ton)
B60: Massa TOTAL de resíduos destinados a centrais ou aterros sanitários de terceiros (ton)
B61: Massa TOTAL de resíduos destinados a centrais ou aterros sanitários próprios (ton) | F61: =F53 -> 2,619 | G61: =G53 -> 2,666
B62: Fonte: Relatórios gerenciais dos serviços
B76: Fonte: Relatórios gerenciais do Prestador

Sheet 4 Dados Cadastrais-USUÁRIOS
B1: RETORNAR AO SUMÁRIO
B2: Informações cadastrais dos domicílios/imóveis com serviço de manejo de RSU à disposição
B3: I - Fator de rateio da taxa ou tarifa com base na quantidade de domicílios/imóveis com coleta de RSU
B4: Categoria/Tipologia de domicílios/usuários | C4: Ano-Base | D4: Ano Atual
C5: ='1 Identificação e Parâmetros'!K9 -> 2021 | D5: =C5+1 -> 2022
C6: Quant Imóveis | D6: Quant Imóveis
B7: Residenciais | C7: 3,219 | D7: 3,284
B8: Comerciais e serviços | C8: 127 | D8: 130
B9: Industriais | C9: 3 | D9: 3
B10: Públicos e filantrópicos de interesse público | C10: 21 | D10: 21
B11: Total de domicílios/imóveis | C11: =SUM(C7:C10) -> 3,370 | D11: =SUM(D7:D10) -> 3,438
B12: II - Fator de rateio da taxa ou tarifa com base no volume faturado de água dos imóveis com coleta de RSU
B13: Categoria/Tipologia de domicílios/usuários | C13: Ano-Base | E13: Ano Atual
C14: =C5 -> 2021 | E14: =C14+1 -> 2022
C15: Quant Imóveis | D15: Vol Faturado m³ | E15: Quant Imóveis | F15: Vol Faturado m³
B16: Residenciais | C16: 3,219 | E16: 3,284
B17: Comerciais e serviços | C17: 127 | E17: 130
B18: Industriais | C18: 3 | E18: 3
B19: Públicos e filantrópicos de interesse público | C19: 21 | E19: 21
B20: Total | C20: =SUM(C16:C19) -> 3,370 | D20: 684,171 | E20: =SUM(E16:E19) -> 3,438 | F20: 677,224
B21: III - Fator de rateio da taxa ou tarifa com base na área total construída dos imóveis com coleta de RSU
B22: Categoria/Tipologia de domicílios/usuários | C22: Ano-Base | E22: Ano Atual
C23: =C14 -> 2021 | E23: =C23+1 -> 2022
C24: Quant Imóveis | D24: Área Construída m² | E24: Quant Imóveis | F24: Área Construída m²
B25: Residenciais | C25: 3,219 | E25: 3,284
B26: Comerciais e serviços | C26: 127 | E26: 130
B27: Industriais | C27: 3 | E27: 3
B28: Públicos e filantrópicos de interesse público | C28: 21 | E28: 21
B29: Total | C29: =SUM(C25:C28) -> 3,370 | D29: =C29*100 -> 337,030 | E29: =SUM(E25:E28) -> 3,438 | F29: =E29*100 -> 343,769
B30: Fontes: Cadastro imobiliário de contribuintes do IPTU/TMRS e/ou Cadastro de usuários do prestador do serviço de manejo de resíduos ou do serviço de abastecimento de água.

Sheet 5.1 CalcCustoVBC-Completo
B1: RETORNAR AO SUMÁRIO
B2: Cálculo do custo regulatório do serviço de manejo de resíduos sólidos urbanos
B3: Esta planilha será utilizada se for escolhida a aplicação da VERSÃO COMPLETA da ferramenta. Os dados desta planilha são importados e processados automaticamente das planilhas 2, 3 e 4.
B4: ELEMENTO DE DESPESAS (R$) | D4: Ano-Base | E4: Ano Atual
D5: ='1 Identificação e Parâmetros'!K9 -> 2021 | E5: =D5+1 -> 2022
B6: Despesas Diretas — Administrativas e Operacionais | C6: 1.1 Pessoal próprio (inclui cedido de outros órgãos) | D6: ='2 DadosFinanServRSU'!C8 -> 539,184 | E6: =IF('1 Identificação e Parâmetros'!$I$14=2,0,'2 DadosFinanServRSU'!D8) -> 587,308
C7: 1.2 Pessoal contratado (mão de obra terceirizada) | D7: ='2 DadosFinanServRSU'!C14 -> 0 | E7: =IF('1 Identificação e Parâmetros'!$I$14=2,0,'2 DadosFinanServRSU'!D14) -> 0
C8: 2 Serviços de terceiros (coleta, transporte, operação de aterro, disposição de RSU etc.) | D8: ='2 DadosFinanServRSU'!C20 -> 52,725 | E8: =IF('1 Identificação e Parâmetros'!$I$14=2,0,'2 DadosFinanServRSU'!D20) -> 56,376
C9: 3 Aluguel de imóveis | D9: ='2 DadosFinanServRSU'!C28 -> 0 | E9: =IF('1 Identificação e Parâmetros'!$I$14=2,0,'2 DadosFinanServRSU'!D28) -> 0
C10: 4 Aluguel de veículos, máquinas e equipamentos | D10: ='2 DadosFinanServRSU'!C33 -> 0 | E10: =IF('1 Identificação e Parâmetros'!$I$14=2,0,'2 DadosFinanServRSU'!D33) -> 0
C11: 5 Combustível e manutenção de veículos, máquinas e equipamentos | D11: ='2 DadosFinanServRSU'!C40 -> 91,984 | E11: =IF('1 Identificação e Parâmetros'!$I$14=2,0,'2 DadosFinanServRSU'!D40) -> 102,033
C12: 6 Energia elétrica | D12: ='2 DadosFinanServRSU'!C47 -> 0 | E12: =IF('1 Identificação e Parâmetros'!$I$14=2,0,'2 DadosFinanServRSU'!D47) -> 0
C13: 7 Material de consumo | D13: ='2 DadosFinanServRSU'!C53 -> 0 | E13: =IF('1 Identificação e Parâmetros'!$I$14=2,0,'2 DadosFinanServRSU'!D53) -> 0
C14: 8 Despesas com a cobrança e arrecadação de taxas e tarifas | D14: ='2 DadosFinanServRSU'!C59 -> 141,590 | E14: =IF('1 Identificação e Parâmetros'!$I$14=2,0,'2 DadosFinanServRSU'!D59) -> 151,396
C15: 9 Despesas diversas | D15: ='2 DadosFinanServRSU'!C60 -> 29,200 | E15: =IF('1 Identificação e Parâmetros'!$I$14=2,0,'2 DadosFinanServRSU'!D60) -> 31,222
C16: 10 Despesas extraordinárias ou eventuais | D16: ='2 DadosFinanServRSU'!C61 -> 0 | E16: =IF('1 Identificação e Parâmetros'!$I$14=2,0,'2 DadosFinanServRSU'!D61) -> 0
C17: 11 Provisões de despesas contingentes — cíveis e trabalhistas | D17: ='2 DadosFinanServRSU'!C62 -> 0 | E17: =IF('1 Identificação e Parâmetros'!$I$14=2,0,'2 DadosFinanServRSU'!D62) -> 0
C18: Subtotal — Despesas administrativas e operacionais (A) | D18: =SUM(D6:D17) -> 854,683 | E18: =SUM(E6:E17) -> 928,335
B19: Despesas indiretas (se não houver informações nos itens anteriores) | D19: ='2 DadosFinanServRSU'!C64 -> 85,468 | E19: =IF('1 Identificação e Parâmetros'!$I$14=2,0,'2 DadosFinanServRSU'!D64) -> 92,834 | F19: ='1 Identificação e Parâmetros'!K11 -> 10%
B20: Depreciação e exaustão de ativos imobilizados (B) | D20: ='2 DadosFinanServRSU'!C65*'1 Identificação e Parâmetros'!$K$10 -> 105,400 | E20: =IF('1 Identificação e Parâmetros'!$I$14=2,0,'2 DadosFinanServRSU'!D65*'1 Identificação e Parâmetros'!$K$10) -> 110,150
B21: Despesas tributárias | C21: PIS/PASEP e outros tributos sobre a receita (C) | D21: ='2 DadosFinanServRSU'!C72 -> 10,561 | E21: =IF('1 Identificação e Parâmetros'!$I$14=2,0,'2 DadosFinanServRSU'!D72) -> 11,427
B22: Despesas financeiras | C22: Despesas de juros e encargos de empréstimos (D) | D22: ='2 DadosFinanServRSU'!C71 -> 0 | E22: =IF('1 Identificação e Parâmetros'!$I$14=2,0,'2 DadosFinanServRSU'!D71) -> 0
B23: Custo Contábil Total do Serviço (A+B+C+D) (E) | D23: =D18+D19+D20+D21+D22 -> 1,056,112 | E23: =E18+E19+E20+E21+E22 -> 1,142,746
B24: Custo e ajustes regulatórios | C24: Remuneração dos investimentos em operação — capital próprio (F) | D24: ='3 Dados-Complementares'!F47*'1 Identificação e Parâmetros'!$K$15-D22 -> 40,106 | E24: =IF('1 Identificação e Parâmetros'!$I$14=2,0,'3 Dados-Complementares'!G47*'1 Identificação e Parâmetros'!$K$15-E22) -> 37,839
C25: Acréscimos regulatórios (G) | D25: =(('2 DadosFinanServRSU'!G9-'2 DadosFinanServRSU'!G13)+'2 DadosFinanServRSU'!G12)+(D23+D24)*'9 Dados_Exerc_Ferramenta'!G30+(D23+D24)*'9 Dados_Exerc_Ferramenta'!G31 -> 60,292 | E25: =(IF('1 Identificação e Parâmetros'!$I$14=2,0,('2 DadosFinanServRSU'!H9-'2 DadosFinanServRSU'!H13)+'2 DadosFinanServRSU'!H12))+(E23+E24)*'9 Dados_Exerc_Ferramenta'!G30+(E23+E24)*'9 Dados_Exerc_Ferramenta'!G31 -> 64,932
C26: Deduções regulatórias (H) | D26: =-'2 DadosFinanServRSU'!G20-'2 DadosFinanServRSU'!G25 -> 0 | E26: =IF('1 Identificação e Parâmetros'!$I$14=2,0,-'2 DadosFinanServRSU'!H20-'2 DadosFinanServRSU'!H25) -> 0
C27: Despesas com a regulação dos serviços (I) | D27: ='2 DadosFinanServRSU'!C73 -> 0 | E27: =IF('1 Identificação e Parâmetros'!$I$14=2,0,'2 DadosFinanServRSU'!D73) -> 0
B28: Custo Regulatório Total do Serviço (E+F+G+H+I) (J) | D28: =SUM(D23:D27) -> 1,156,511 | E28: =IF('1 Identificação e Parâmetros'!$I$14=1,SUM(E23:E27),D28*(1+'1 Identificação e Parâmetros'!K13)) -> 1,245,517
B30: Valores Básicos de Cálculo das Taxas ou Tarifas de Manejo de Resíduos (VBC)
B31: Opção 1 | C31: VBC — Custo médio unitário por tonelada coletada (R$/ton) | D31: =D28/D32 -> 441.56 | E31: =E28/E32 -> 467.14
C32: Quantidade total de resíduos coletados (ton) | D32: ='3 Dados-Complementares'!F52 -> 2,619 | E32: ='3 Dados-Complementares'!G52 -> 2,666
B33: Opção 2 | C33: VBC — Custo médio anual por domicílio (R$/dom) | D33: =D28/D34 -> 343.15 | E33: =E28/E34 -> 362.31
C34: Quantidade total de domicílios com serviço à disposição (domicílio) | D34: ='4 Dados Cadastrais-USUÁRIOS'!C11 -> 3,370 | E34: ='4 Dados Cadastrais-USUÁRIOS'!D11 -> 3,438
B35: Opção 3 | C35: VBC — Custo médio mensal por domicílio (R$/dom) | D35: =D28/D36/12 -> 28.60 | E35: =E28/E36/12 -> 30.19
C36: Quantidade total de domicílios com serviço à disposição (domicílio) | D36: ='4 Dados Cadastrais-USUÁRIOS'!C11 -> 3,370 | E36: ='4 Dados Cadastrais-USUÁRIOS'!D11 -> 3,438
B37: Opção 4 | C37: VBC — Custo médio unitário por m³ de água consumida (R$/m³) | D37: =D28/D38 -> 1.69 | E37: =E28/E38 -> 1.84
C38: Volume total de água consumido ou faturado no ano (m³) | D38: ='4 Dados Cadastrais-USUÁRIOS'!D20 -> 684,171 | E38: ='4 Dados Cadastrais-USUÁRIOS'!F20 -> 677,224
B39: Opção 5 | C39: VBC — Custo médio unitário por m2 de área construida (R$/m2) | D39: =D28/D40 -> 3.43 | E39: =E28/E40 -> 3.62
C40: Área total construída dos domicílios usuários do serviço (m2) | D40: ='4 Dados Cadastrais-USUÁRIOS'!D29 -> 337,030 | E40: ='4 Dados Cadastrais-USUÁRIOS'!F29 -> 343,769

Sheet 5.2 CalcCustoVBC-Simplificado
B1: RETORNAR AO SUMÁRIO
B2: Cálculo do custo regulatório do serviço de manejo de resíduos sólidos urbanos
B3: Esta planilha somente deve ser utilizada se for escolhida a aplicação da VERSÃO SIMPLIFICADA da ferramenta. Neste caso, as informações das despesas podem ser inseridas diretamente nesta planilha.
B4: ELEMENTO DE DESPESAS (R$) | D4: Ano-Base | E4: Ano Atual
D5: ='1 Identificação e Parâmetros'!K9 -> 2021 | E5: =D5+1 -> 2022
B6: Despesas Diretas — Administrativas e Operacionais | C6: 1.1 Pessoal próprio (inclui cedido de outros órgãos) | D6: ='9 Dados_Exerc_Ferramenta'!H3+'9 Dados_Exerc_Ferramenta'!H15 -> 539,184 | E6: =IF('1 Identificação e Parâmetros'!$I$14=2,0,D6*(1+'1 Identificação e Parâmetros'!$K$13+'9 Dados_Exerc_Ferramenta'!K3)) -> 587,308
C7: 1.2 Pessoal contratado (mão de obra terceirizada) | E7: =IF('1 Identificação e Parâmetros'!$I$14=2,0,D7*(1+'1 Identificação e Parâmetros'!$K$13)) -> 0
C8: 2 Serviços de terceiros (coleta, transporte, operação de aterro, disposição de RSU etc.) | D8: ='9 Dados_Exerc_Ferramenta'!H5+'9 Dados_Exerc_Ferramenta'!H17 -> 52,725 | E8: =IF('1 Identificação e Parâmetros'!$I$14=2,0,D8*(1+'1 Identificação e Parâmetros'!$K$13)) -> 56,376
C9: 3 Aluguel de imóveis | E9: =IF('1 Identificação e Parâmetros'!$I$14=2,0,D9*(1+'1 Identificação e Parâmetros'!$K$13)) -> 0
C10: 4 Aluguel de veículos, máquinas e equipamentos | E10: =IF('1 Identificação e Parâmetros'!$I$14=2,0,D10*(1+'1 Identificação e Parâmetros'!$K$13)) -> 0
C11: 5 Combustível e manutenção de veículos, máquinas e equipamentos | D11: ='9 Dados_Exerc_Ferramenta'!H8+'9 Dados_Exerc_Ferramenta'!H9+'9 Dados_Exerc_Ferramenta'!H20+'9 Dados_Exerc_Ferramenta'!H21 -> 91,984 | E11: =IF('1 Identificação e Parâmetros'!$I$14=2,0,D11*(1+'1 Identificação e Parâmetros'!$K$13+'9 Dados_Exerc_Ferramenta'!K8)) -> 102,033
C12: 6 Energia elétrica | E12: =IF('1 Identificação e Parâmetros'!$I$14=2,0,D12*(1+'1 Identificação e Parâmetros'!$K$13)) -> 0
C13: 7 Material de consumo | E13: =IF('1 Identificação e Parâmetros'!$I$14=2,0,D13*(1+'1 Identificação e Parâmetros'!$K$13)) -> 0
C14: 8 Despesas com a cobrança e arrecadação de taxas e tarifas | D14: ='9 Dados_Exerc_Ferramenta'!$C$15*'9 Dados_Exerc_Ferramenta'!$G$34*12 -> 141,590 | E14: =IF('1 Identificação e Parâmetros'!$I$14=2,0,D14*(1+'1 Identificação e Parâmetros'!$K$13)) -> 151,396
C15: 9 Despesas diversas | D15: ='9 Dados_Exerc_Ferramenta'!H10+'9 Dados_Exerc_Ferramenta'!H22 -> 29,200 | E15: =IF('1 Identificação e Parâmetros'!$I$14=2,0,D15*(1+'1 Identificação e Parâmetros'!$K$13)) -> 31,222
C16: 10 Despesas extraordinárias ou eventuais | E16: =IF('1 Identificação e Parâmetros'!$I$14=2,0,D16*(1+'1 Identificação e Parâmetros'!$K$13)) -> 0
C17: 11 Provisões de despesas contingentes — cíveis e trabalhistas | E17: =IF('1 Identificação e Parâmetros'!$I$14=2,0,D17*(1+'1 Identificação e Parâmetros'!$K$13)) -> 0
C18: Subtotal — Despesas administrativas e operacionais (A) | D18: =SUM(D6:D17) -> 854,683 | E18: =SUM(E6:E17) -> 928,335
B19: Despesas indiretas (se não houver informações nos itens anteriores) | D19: =D18*F19 -> 85,468 | E19: =IF('1 Identificação e Parâmetros'!$I$14=2,0,E18*F19) -> 92,834 | F19: ='1 Identificação e Parâmetros'!K11 -> 10%
B20: Depreciação e exaustão de ativos imobilizados (B) | D20: ='9 Dados_Exerc_Ferramenta'!D40+'9 Dados_Exerc_Ferramenta'!D47 -> 105,400 | E20: =IF('1 Identificação e Parâmetros'!$I$14=2,0,'9 Dados_Exerc_Ferramenta'!D40-'9 Dados_Exerc_Ferramenta'!D39+'9 Dados_Exerc_Ferramenta'!D41+'9 Dados_Exerc_Ferramenta'!D47) -> 110,150
B21: Despesas tributárias | C21: PIS/PASEP e outros tributos sobre a receita (C) | D21: =SUM(D18,D19,D20)/0.99*0.01 -> 10,561 | E21: =IF('1 Identificação e Parâmetros'!$I$14=2,0,SUM(E18,E19,E20)/0.99*0.01) -> 11,427
B22: Despesas financeiras | C22: Despesas de juros e encargos de empréstimos (D)
B23: Custo Contábil Total do Serviço (A+B+C+D) (E) | D23: =D18+D19+D20+D21 -> 1,056,112 | E23: =E18+E19+E20+E21 -> 1,142,746
B24: Custo e ajustes regulatórios | C24: Remuneração dos investimentos em operação — capital próprio (F) | D24: ='9 Dados_Exerc_Ferramenta'!F48*'1 Identificação e Parâmetros'!$K$15-D22 -> 43,505 | E24: ='9 Dados_Exerc_Ferramenta'!G48*'1 Identificação e Parâmetros'!$K$15-D22 -> 41,391
C25: Acréscimos regulatórios (G) | D25: =(D23+D24)*'9 Dados_Exerc_Ferramenta'!G30+(D23+D24)*'9 Dados_Exerc_Ferramenta'!G31 -> 60,479 | E25: =IF('1 Identificação e Parâmetros'!$I$14=2,0,D25/D23*E23) -> 65,440
C26: Deduções regulatórias (H) | E26: =IF('1 Identificação e Parâmetros'!$I$14=2,0,D26/D23*E23) -> 0
C27: Despesas com a regulação dos serviços (I) | E27: =IF('1 Identificação e Parâmetros'!$I$14=2,0,D27/D23*E23) -> 0
B28: Custo Regulatório Total do Serviço (E+F+G+H+I) (J) | D28: =SUM(D23:D27) -> 1,160,097 | E28: =IF('1 Identificação e Parâmetros'!$I$14=2,D28*(1+'1 Identificação e Parâmetros'!$K$13),SUM(E23:E27)) -> 1,249,577
B30: Valores Básicos de Cálculo das Taxas ou Tarifas de Manejo de Resíduos (VBC)
B31: Opção 1 | C31: VBC — Custo médio unitário por tonelada coletada (R$/ton) | D31: =D28/D32 -> 442.93 | E31: =E28/E32 -> 468.66
C32: Quantidade total de resíduos coletados (ton) | D32: ='3 Dados-Complementares'!F52 -> 2,619 | E32: ='3 Dados-Complementares'!G52 -> 2,666
B33: Opção 2 | C33: VBC — Custo médio anual por domicílio (R$/dom) | D33: =D28/D34 -> 344.21 | E33: =E28/E34 -> 363.49
C34: Quantidade total de domicílios com serviço à disposição (domicílio) | D34: ='4 Dados Cadastrais-USUÁRIOS'!C11 -> 3,370 | E34: ='4 Dados Cadastrais-USUÁRIOS'!D11 -> 3,438
B35: Opção 3 | C35: VBC — Custo médio mensal por domicílio (R$/dom) | D35: =D28/D36/12 -> 28.68 | E35: =E28/E36/12 -> 30.29
C36: Quantidade total de domicílios com serviço à disposição (domicílio) | D36: ='4 Dados Cadastrais-USUÁRIOS'!C11 -> 3,370 | E36: ='4 Dados Cadastrais-USUÁRIOS'!D11 -> 3,438
B37: Opção 4 | C37: VBC — Custo médio unitário por m³ de água consumida (R$/m³) | D37: =D28/D38 -> 1.70 | E37: =E28/E38 -> 1.85
C38: Volume total de água consumido ou faturado no ano (m³) | D38: ='4 Dados Cadastrais-USUÁRIOS'!D20 -> 684,171 | E38: ='4 Dados Cadastrais-USUÁRIOS'!F20 -> 677,224
B39: Opção 5 | C39: VBC — Custo médio unitário por m2 de área construida (R$/m2) | D39: =D28/D40 -> 3.44 | E39: =E28/E40 -> 3.63
C40: Área total construída dos domicílios usuários do serviço (m2) | D40: ='4 Dados Cadastrais-USUÁRIOS'!D29 -> 337,030 | E40: ='4 Dados Cadastrais-USUÁRIOS'!F29 -> 343,769

Sheet 6a Tabelas-Taxas_Tarifas
B1: RETORNAR AO SUMÁRIO
A2: Tabela 1 — Estrutura referencial de cálculo da TMRS com base na categoria dos imóveis e na frequência da coleta (Opção 1 ou 2)
A3: Classe | B3: Categoria | C3: Subcategoria | E3: Frequência da coleta | F3: Unidade | G3: Fator de cálculo | H3: VBCtmrs R$/domic | I3: Taxa anual R$/Domic(1)
A4: 1 | B4: Residencial | C4: Social de baixa renda | E4: 1 x semana | F4: Domicílio | G4: 0.4 | H4: =IF('1 Identificação e Parâmetros'!I19="Versão Completa",'5.1 CalcCustoVBC-Completo'!$E$33*'1 Identificação e Parâmetros'!$K$12,'5.2 CalcCustoVBC-Simplificado'!$E$33*'1 Identificação e Parâmetros'!$K$12) -> 362.31 | I4: =G4*$H$4 -> R$ 144.93
E5: 3 x semana | G5: 0.6 | I5: =G5*$H$4 -> R$ 217.39
E6: 6 x semana | G6: 0.8 | I6: R$ 289.85
C7: Normal | E7: 1 x semana | F7: Domicílio | G7: 0.8 | I7: R$ 289.85
E8: 3 x semana | G8: 1 | I8: R$ 362.31
E9: 6 x semana | G9: 1.2 | I9: R$ 434.78
A10: 2 | B10: Comercial e serviços | C10: Única | E10: 1 x semana | F10: Domicílio | G10: 1 | I10: R$ 362.31
E11: 3 x semana | G11: 1.2 | I11: R$ 434.78
E12: 6 x semana | G12: 1.5 | I12: R$ 543.47
A13: 3 | B13: Industrial | C13: Única | E13: 1 x semana | F13: Domicílio | G13: 1 | I13: R$ 362.31
E14: 3 x semana | G14: 1.2 | I14: R$ 434.78
E15: 6 x semana | G15: 1.5 | I15: R$ 543.47
A16: 4 | B16: Pública e filantrópica | C16: Única | E16: 1 x semana | F16: Domicílio | G16: 0.8 | I16: R$ 289.85
E17: 3 x semana | G17: 1 | I17: R$ 362.31
E18: 6 x semana | G18: 1.2 | I18: R$ 434.78
A19: (1) Lançamento anual da TMRS — a cobrança pode ser em parcela única ou mensal
A21: RETORNAR AO SUMÁRIO
A22: Tabela 2 — Estrutura referencial de cálculo da TMRS com base na categoria e no padrão dos imóveis (Opção 1 ou 2)
A23: Classe | B23: Categoria | C23: Padrão/Área Construída | E23: Fator Padrão Porte/área | F23: Unidade | G23: VBCtmrs R$/domic | H23: Taxa anual(1) R$/domic
H24: 3 x sem
A25: 1 | B25: Residencial | C25: Social de baixa renda | E25: 0.5 | F25: Domicílio | G25: =IF('1 Identificação e Parâmetros'!I19="Versão Completa",'5.1 CalcCustoVBC-Completo'!$E$33*'1 Identificação e Parâmetros'!$K$12,'5.2 CalcCustoVBC-Simplificado'!$E$33*'1 Identificação e Parâmetros'!$K$12) -> 362.31 | H25: =$G$25*E25 -> 181.16
C26: Padrão popular — até 70 m² | E26: 0.8 | H26: =$G$25*E26 -> 289.85
C27: Padrão médio — de 71 a 200 m² | E27: 1 | H27: 362.31
C28: Alto padrão — acima de 201 m² | E28: 1.45 | H28: 525.35
A29: 2 | B29: Comercial e serviços | C29: Pequeno porte — até 100 m² | E29: 1.2 | H29: 434.78
C30: Médio porte — entre 100 e 300 m² | E30: 1.55 | H30: 561.58
C31: Grande porte — acima de 300 m² | E31: =1.5*1.5 -> 2.25 | H31: 815.20
A32: 3 | B32: Industrial | C32: Pequeno porte — até 200 m² | E32: 1.5 | H32: 543.47
C33: Médio porte — entre 200 e 500 m² | E33: 2.5 | H33: 905.78
C34: Grande porte — acima de 500 m² | E34: 3.0 | H34: 1,086.94
A35: 4 | B35: Pública e filantrópica | C35: Pequeno porte — até 200 m² | E35: 1 | H35: 362.31
C36: Médio porte — entre 200 e 500 m² | E36: 1.2 | H36: 434.78
C37: Grande porte — acima de 500 m² | E37: 1.8 | H37: 652.16
A38: (1) Lançamento anual da TMRS — a cobrança pode ser em parcela única ou mensal
B40: RETORNAR AO SUMÁRIO
B41: Tabela 3 — Estrutura referencial de cálculo da TMRS com base na categoria dos imóveis, na frequência da coleta e no consumo de água (Opção 3) | I41: Valor Básico de Cálculo (VBC)
I42: ='5.1 CalcCustoVBC-Completo'!E5 -> 2022
B43: Tabela 3.1 – Categoria Residencial e Pública | I43: Anual | J43: Mensal
B44: Fatores de cálculo cumulativos | I44: =IF('1 Identificação e Parâmetros'!I19="Versão Completa",'5.1 CalcCustoVBC-Completo'!$E$33*'1 Identificação e Parâmetros'!$K$12,'5.2 CalcCustoVBC-Simplificado'!$E$33*'1 Identificação e Parâmetros'!$K$12) -> R$362.31 | J44: =IF('1 Identificação e Parâmetros'!I19="Versão Completa",'5.1 CalcCustoVBC-Completo'!$E$35*'1 Identificação e Parâmetros'!$K$12,'5.2 CalcCustoVBC-Simplificado'!$E$35*'1 Identificação e Parâmetros'!$K$12) -> R$30.19
B45: Categoria de uso (a) | C45: Frequência da coleta | E45: Consumo médio mensal de água (c) | G45: Simulação da taxa ou tarifa para domicílio no limite superior de cada faixa
C46: Alternada (b1) | D46: Diária (b2) | G46: Coleta em dias alternados | I46: Coleta diária
B47: 1 | C47: 1 | D47: 1.3 | E47: Fator fixo | G47: Anual | H47: Mensal | I47: Anual | J47: Mensal
E48: Até 5 m³ | F48: 0.35 | G48: =$I$44*F48 -> R$126.81 | H48: =$J$44*F48 -> R$10.57 | I48: =G48*$D$47 -> R$164.85 | J48: =H48*$D$47 -> R$13.74
E49: Fator variável por m³
E50: > 5 a 15m³ | F50: 0.06 | G50: =$I$44*(F48+10*F50) -> R$344.20 | H50: =$J$44*(F48+10*F50) -> R$28.68 | I50: =G50*$D$47 -> R$447.46 | J50: R$37.29
E51: > 15 a 25m³ | F51: 0.05 | G51: =$I$44*(F48+10*F50+10*F51) -> R$525.35 | H51: =$J$44*(F48+10*F50+10*F51) -> R$43.78 | I51: R$682.96 | J51: R$56.91
E52: > 25 a 35 m³ | F52: 0.035 | G52: =$I$44*(F48+10*F50+10*F51+10*F52) -> R$652.16 | H52: =$J$44*(F48+10*F50+10*F51+10*F52) -> R$54.35 | I52: R$847.81 | J52: R$70.65
E53: > 35 a 50 m³ | F53: 0.03 | G53: =$I$44*(F48+10*F50+10*F51+10*F52+15*F53) -> R$815.20 | H53: =$J$44*(F48+10*F50+10*F51+10*F52+15*F53) -> R$67.93 | I53: R$1,059.76 | J53: R$88.31
E54: > 50 m³ até o limite de 100 m³ | F54: 0.025 | G54: =$I$44*(F48+10*F50+10*F51+10*F52+15*F53+50*F54) -> R$1,268.09 | H54: =$J$44*(F48+10*F50+10*F51+10*F52+15*F53+50*F54) -> R$105.67 | I54: R$1,648.52 | J54: R$137.38
B55: Tabela 3.2 – Categoria Comercial (inclusive prestadores de serviços)
B56: Fatores de cálculo cumulativos
B57: Categoria de uso (a) | C57: Frequência da Coleta | E57: Consumo médio mensal de água (c)
C58: Alternada (b1) | D58: Diária (b2) | G58: Coleta em dias alternados | I58: Coleta diária
B59: 1.5 | C59: 1 | D59: 1.3 | E59: Fator fixo | G59: Anual | H59: Mensal | I59: Anual | J59: Mensal
E60: Até 5 m³ | F60: 0.35 | G60: =$I$44*F60*$B$59 -> R$190.21 | H60: =$J$44*F60*$B$59 -> R$15.85 | I60: =G60*$D$59 -> R$247.28 | J60: =H60*$D$59 -> R$20.61
E61: Fator variável por m³
E62: > 5 a 15m³ | F62: 0.06 | G62: =$I$44*(F60+10*F62)*$B$59 -> R$516.30 | H62: =$J$44*(F60+10*F62)*$B$59 -> R$43.02 | I62: =G62*$D$59 -> R$671.18 | J62: R$55.93
E63: > 15 a 25m³ | F63: 0.05 | G63: =$I$44*(F60+10*F62+10*F63)*$B$59 -> R$788.03 | H63: =$J$44*(F60+10*F62+10*F63)*$B$59 -> R$65.67 | I63: R$1,024.44 | J63: R$85.37
E64: > 25 a 35 m³ | F64: 0.04 | G64: =$I$44*(F60+10*F62+10*F63+10*F64)*$B$59 -> R$1,005.42 | H64: =$J$44*(F60+10*F62+10*F63+10*F64)*$B$59 -> R$83.78 | I64: R$1,307.04 | J64: R$108.92
E65: > 35 a 50 m³ | F65: 0.035 | G65: =$I$44*(F60+10*F62+10*F63+10*F64+15*F65)*$B$59 -> R$1,290.74 | H65: =$J$44*(F60+10*F62+10*F63+10*F64+15*F65)*$B$59 -> R$107.56 | I65: R$1,677.96 | J65: R$139.83
E66: > 50 m³ até o limite de 150 m³ | F66: 0.03 | G66: =$I$44*(F60+10*F62+10*F63+10*F64+15*F65+100*F66)*$B$59 -> R$2,921.15 | H66: =$J$44*(F60+10*F62+10*F63+10*F64+15*F65+100*F66)*$B$59 -> R$243.43 | I66: R$3,797.49 | J66: R$316.46
B67: Tabela 3.3 – Categoria Industrial
B68: Fatores de cálculo cumulativos
B69: Categoria de uso (a) | C69: Frequência da Coleta | E69: Consumo médio mensal de água (c)
C70: Alternada (b1) | D70: Diária (b2) | G70: Coleta em dias alternados | I70: Coleta diária
E71: Fator fixo | G71: Anual | H71: Mensal | I71: Anual | J71: Mensal
B72: 1.5 | C72: 1 | D72: 1.3 | E72: Até 5 m³ | F72: 0.35 | G72: =$I$44*F72*$B$72 -> R$190.21 | H72: =$J$44*F72*$B$72 -> R$15.85 | I72: =G72*$D$72 -> R$247.28 | J72: =H72*$D$72 -> R$20.61
E73: Fator variável por m³
E74: > 5 a 30 m³ | F74: 0.05 | G74: =$I$44*(F72+25*F74)*$B$72 -> R$869.55 | H74: =$J$44*(F72+25*F74)*$B$72 -> R$72.46 | I74: =G74*$D$72 -> R$1,130.42 | J74: R$94.20
E75: > 30 a 100m³ | F75: 0.03 | G75: =$I$44*(F72+25*F74+70*F75)*$B$72 -> R$2,010.84 | H75: =$J$44*(F72+25*F74+70*F75)*$B$72 -> R$167.57 | I75: R$2,614.09 | J75: R$217.84
E76: > 100 a 500 m³ | F76: 0.015 | G76: =$I$44*(F72+25*F74+70*F75+400*F76)*$B$72 -> R$5,271.65 | H76: =$J$44*(F72+25*F74+70*F75+400*F76)*$B$72 -> R$439.30 | I76: R$6,853.14 | J76: R$571.10
E77: > 500 m³ até o limite de 1000 m³ | F77: 0.005 | G77: =$I$44*(F72+25*F74+70*F75+400*F76+500*F77)*$B$72 -> R$6,630.32 | H77: =$J$44*(F72+25*F74+70*F75+400*F76+500*F77)*$B$72 -> R$552.53 | I77: R$8,619.42 | J77: R$718.28
B78: Fórmula de cálculo da TMRS = VBCTMRS x (Fator a x Fator b1,2 x Fator c)
B80: RETORNAR AO SUMÁRIO
B81: Tabela 4 — Estrutura referencial de cálculo da TMRS com base na categoria dos imóveis e no volume de água consumida (Opção 4)
B82: Categorias e faixas de consumo mensal de água | C82: Fatores de cálculo dos valores unitários na faixa | D82: Preço unitário da taxa/tarifa por faixa R$/m³ de água | E82: VBC — Valor Básico de Cálculo R$/m³ de água | F82: Simulação de taxa/tarifa individual (média da faixa) R$ / Domicílio / mês
B84: Residencial normal | E84: =IF('1 Identificação e Parâmetros'!I19="Versão Completa",'5.1 CalcCustoVBC-Completo'!$E$37*'1 Identificação e Parâmetros'!$K$12,'5.2 CalcCustoVBC-Simplificado'!$E$37*'1 Identificação e Parâmetros'!$K$12) -> R$1.84
B85: Até 10 m³ — Taxa Básica | C85: 8.0 | D85: =C85*$E$84 -> R$14.71 | F85: =D85 -> R$14.71
B86: De 10 a 20 m³ | C86: 0.7 | D86: R$1.29 | F86: =F85+5*D86 -> R$21.15
B87: De 20 a 30 m³ | C87: 0.6 | D87: R$1.10 | F87: =F85+10*D86+5*D87 -> R$33.10
B88: De 30 a 40 m³ | C88: 0.5 | D88: R$0.92 | F88: =F85+10*D86+10*D87+5*D88 -> R$43.22
B89: De 40 a 100 m³ | C89: 0.3 | D89: R$0.55 | F89: =F85+10*D86+10*D87+10*D88+30*D89 -> R$64.37
B90: Acima de 100 m³ | C90: 0.0 | D90: R$0.00 | F90: =F85+10*D86+10*D87+10*D88+70*D89 -> R$86.44
B91: Residencial social
B92: Até 10 m³ — Taxa Básica | C92: 4.00 | D92: =C92*$E$84 -> R$7.36 | F92: =D92 -> R$7.36
B93: De 10 a 15 m³ | C93: 0.35 | D93: R$0.64 | F93: =F92+2.5*D93 -> R$8.97
B94: De 15 a 20 m³ | C94: 0.35 | D94: R$0.64 | F94: =F92+5*D93+2.5*D94 -> R$12.18
B95: De 20 a 30 m³ | C95: 0.30 | D95: R$0.55 | F95: =F92+5*D93+5*D94+5*D95 -> R$16.55
B96: Comercial
B97: Até 10 m³ — Taxa Básica | C97: 12.0 | D97: R$22.07 | F97: =D97 -> R$22.07
B98: De 10 a 20 m³ | C98: 0.9 | D98: R$1.66 | F98: =F97+5*D98 -> R$30.35
B99: De 20 a 30 m³ | C99: 0.8 | D99: R$1.47 | F99: =F97+10*D98+5*D99 -> R$45.98
B100: De 30 a 50 m³ | C100: 0.7 | D100: R$1.29 | F100: =F97+10*D98+10*D99+10*D100 -> R$66.21
B101: De 50 a 150 m³ | C101: 0.5 | D101: R$0.92 | F101: =F97+10*D98+10*D99+20*D100+50*D101 -> R$125.06
B102: Acima de 150 m³ | C102: 0.0 | D102: R$0.00 | F102: =F97+10*D98+10*D99+20*D100+100*D101 -> R$171.04
B103: Industrial
B104: Até 10 m³ — Taxa Básica | C104: 15.0 | D104: R$27.59 | F104: =D104 -> R$27.59
B105: De 10 a 30 m³ | C105: 1.0 | D105: R$1.84 | F105: =F104+10*D105 -> R$45.98
B106: De 30 a 100 m³ | C106: 0.9 | D106: R$1.66 | F106: =F104+20*D105+35*D106 -> R$122.30
B107: De 100 a 500 m³ | C107: 0.7 | D107: R$1.29 | F107: =F104+20*D105+70*D106+200*D107 -> R$437.72
B108: De 500 a 1000 m³ | C108: 0.5 | D108: R$0.92 | F108: =F104+20*D105+70*D106+400*D107+250*D108 -> R$925.09
B109: Acima 1000 m³ | C109: 0.0 | D109: R$0.00 | F109: =F104+20*D105+70*D106+400*D107+500*D108 -> R$1,154.99
B110: Pública
B111: Até 10 m³ — Taxa Básica | C111: 8.0 | D111: =C111*$E$84 -> R$14.71 | F111: =D111 -> R$14.71
B112: De 10 a 20 m³ | C112: 0.7 | D112: R$1.29 | F112: =F111+5*D112 -> R$21.15
B113: De 20 a 30 m³ | C113: 0.6 | D113: R$1.10 | F113: =F111+10*D112+5*D113 -> R$33.10
B114: De 30 a 40 m³ | C114: 0.5 | D114: R$0.92 | F114: =F111+10*D112+10*D113+5*D114 -> R$43.22
B115: De 40 a 100 m³ | C115: 0.3 | D115: R$0.55 | F115: =F111+10*D112+10*D113+10*D114+30*D115 -> R$64.37
B116: Acima de 100 m³ | C116: 0.0 | D116: R$0.00 | F116: =F111+10*D112+10*D113+10*D114+70*D115 -> R$86.44
A118: RETORNAR AO SUMÁRIO
A119: 5. Hipóteses de cobrança em regime de tarifa
A120: 1.Quando o serviço for prestado mediante concessão comum, incluindo todas as atividades de coleta até a destinação final adequada, a cobrança do serviço poderá ser feita diretamente pelo prestador, em regime de tarifa, por meio de documento de cobrança específico (conta/fatura). Neste caso, o prestador não receberá qualquer espécie de contraprestação do Município, exceto na forma de investimento, sendo a tarifa e outras receitas acessórias a fonte exclusiva de remuneração do serviço prestado.
A125: 2. No caso de concessão patrocinada (PPP), e desde que o prestador execute todas as etapas do serviço, também poderá ser adotado regime de tarifa. Nesse caso, a remuneração do serviço será coberta parcialmente pela tarifa e outras receitas acessórias e o restante será coberto por meio de contraprestação do Município, na forma pactuada no contrato.
A128: 3. Essas hipóteses também se aplicam quando houver prestação em regime de gestão associada, por meio de consórcio ou de convênio de cooperação, em que há delegação por meio de contrato de programa.
A130: 4. Nesses casos, a cobrança somente poderá incidir sobre os usuários efetivos do serviço, condição esta que deverá ser estabelecida pela regulação legal da cobrança, mediante critérios objetivos de aferição, tais como: ser usuário ativo dos serviços de abastecimento de água, de esgotamento sanitário e/ou de energia elétrica; o imóvel, edificado ou não, estar sendo utilizado para qualquer atividade (moradia, comércio, serviço, indústria etc.); e/ou haver adesão contratual do usuário, ainda que a adesão seja compulsória nos termos da lei.
A135: 5. A jurisprudência existente não é conclusiva sobre a possibilidade de cobrança de tarifa desses serviços, quando houver prestação direta por órgão ou entidade municipal. No entanto, por interpretação isonômica com a cobrança de tarifas pela prestação direta dos serviços de abastecimento de água e de esgotamento sanitário, pode-se concluir que também nesse caso pode ser adotado o regime de cobrança de tarifa dos usuários efetivos do serviço.
A139: 6. Os critérios de cálculo da tarifa podem ser iguais aos propostos para o cálculo da taxa ou outros definidos pela regulação, observando-se que, neste caso, se a legislação municipal não determinar o contrário, a regulação da tarifa poderá ser feita por decreto e/ou, complementarmente, por normas do ente regulador.
A142: 7. Se houver prestação do serviço de abastecimento de água universalizada na área de cobertura do serviço de coleta de resíduos sólidos domiciliares ou equiparados, a tarifa ou taxa de manejo de resíduos poderá ser calculada com base no consumo de água, utilizando estrutura similar à daquele serviço.
A144: 8. Para os imóveis, edificados ou não, que não sejam caracterizados como usuários efetivos dos serviços, somente poderá haver cobrança de taxa pela disposição e uso potencial desses serviços. Essa receita pertence ao Município ou à entidade pública prestadora do serviço, mas pode ser vinculada para o pagamento de contraprestação ao prestador ou para realização de investimentos em infraestruturas do serviço, no caso de prestação em regime de concessão.

Sheet 6b TabelasCalc-Tax_Tarif_ANA
B1: RETORNAR AO SUMÁRIO
A2: I - Fator de Rateio: Consumo de Água (volume de água faturado)
A3: Tabela 1 — Estrutura referencial de cálculo linear da TMRSa, conforme o consumo de água | H3: Exemplos-TMRS Individuais | J3: Descritivos dos fatores componentes das fórmulas de cálculo
B4: Categoria do Usuário | C4: FTBi | D4: FCI | E4: VAFi mensal (> ou = FTBi) | F4: VUa (R$/m³) | G4: Vol. Limite de incidência (m³) | H4: Volume Faturado | I4: Valor da TMRS R$/mês | J4: Fórmula Geral: TMRS = TBD + VUa x (VAFi – FTBi) x FCI
B5: Residencial social | C5: 3 | D5: 0.5 | E5: (Informado) | F5: ='5.1 CalcCustoVBC-Completo'!E37 -> 1.84 | G5: 30 | H5: 13 | I5: =$F$5*C5+$F$5*(H5-C5)*D5 -> 14.71 | J5: TBD = VUa x FTBi
B6: Residencial | C6: 5 | D6: 1 | G6: 100 | H6: 18 | I6: =$F$5*C6+$F$5*(H6-C6)*D6 -> 33.10 | J6: TBD : Tarifa/Taxa básica mensal de disponibilidade dos serviços. (R$)
B7: Comercial e serviços | C7: 10 | D7: 1.2 | G7: 300 | H7: 55 | I7: =$F$5*C7+$F$5*(H7-C7)*D7 -> 117.71 | J7: VUa : o valor unitário do custo regulatório com base no consumo de água (R$/m3)
B8: Industrial | C8: 12 | D8: 1.3 | G8: 500 | H8: 250 | I8: =$F$5*C8+$F$5*(H8-C8)*D8 -> 591.10 | J8: FTBi: o Fator de cálculo da respectiva categoria/subcategoria do imóvel expresso em metros cúbicos (m3) e múltiplo de 1 m³.
B9: Pública e filantrópica | C9: 5 | D9: 1 | G9: 300 | H9: 150 | I9: =$F$5*C9+$F$5*(H9-C9)*D9 -> 275.87 | J9: VAFi: consumo de água faturado mensal do imóvel (economia), observado consumo mínimo faturado igual ou superior ao FTBi e o limite máximo da categoria, se for o caso. (m3)
B10: Imóveis vazios, lotes e terrenos | C10: 10 | D10: (NA) | G10: (NA) | H10: (NA) | I10: =F5*C10 -> 18.39 | J10: FCI: Fator adimensional de rateio (FR) do custo do serviço, utilizado para o cálculo da TMRS.
B11: Lançamento mensal da TMRS — cobrança mensal da TMRS conforme o consumo de água do imóvel.
A13: Tabela 2 — Estrutura referencial de cálculo da TMRS conforme padrão do imóvel e consumo de água | I13: Exemplos-TMRS Individuais
B14: Categoria do Usuário | C14: Padrão / Área Construída | D14: FPI | E14: FTBi | F14: FCI | G14: VAFi mensal (> ou = FTBi) | H14: VUa R$/m3 | I14: Volume Faturado | J14: Valor da TMRS R$/mês | K14: Fórmula Geral: TMRS = TBD + VUa x (VAFi – FTBi) x FCI x FPI
B15: Residencial social | C15: Taxa/Tarifa de disponibilidade | E15: 3 | G15: (Informado) | H15: ='5.1 CalcCustoVBC-Completo'!E37 -> 1.84 | I15: (NA) | J15: =E15*$H$15 -> 5.52 | K15: FPI: Fator do padrão do imóvel
C16: Social de baixa renda | D16: 0.5 | F16: 0.8 | I16: 12 | J16: =$H$15*$E$15+$H$15*(I16-$E$15)*$F$16*D16 -> 12.14
C17: Padrão popular(1) – até 60m² | D17: 0.8 | I17: 15 | J17: =$H$15*$E$15+$H$15*(I17-$E$15)*$F$16*D17 -> 19.64
B18: Residencial normal | C18: Taxa/Tarifa de disponibilidade | E18: 5 | I18: (NA) | J18: =E18*$H$15 -> 9.20
C19: até 60m² | D19: 0.8 | F19: 1 | I19: 13 | J19: =$H$15*$E$18+$H$15*(I19-$E$18)*$F$19*D19 -> 20.97
C20: de 61 a 100m² | D20: 0.9 | I20: 18 | J20: =$H$15*$E$18+$H$15*(I20-$E$18)*$F$19*D20 -> 30.71
C21: De 100 a 250m² | D21: 1.1 | I21: 22 | J21: =$H$15*$E$18+$H$15*(I21-$E$18)*$F$19*D21 -> 43.59
C22: acima de 250m² | D22: 1.3 | I22: 28 | J22: 64.19
B23: Comercial e serviços | C23: Taxa/Tarifa de disponibilidade | E23: 10 | I23: (NA) | J23: =E23*$H$15 -> 18.39
C24: Micro negócio – até 50m² | D24: 0.7 | F24: 1.2 | I24: 12 | J24: =$H$15*$E$23+$H$15*(I24-$E$23)*$F$24*D24 -> 21.48
C25: Pequeno porte – de 51 a 100m² | D25: 0.9 | I25: 20 | J25: =$H$15*$E$23+$H$15*(I25-$E$23)*$F$24*D25 -> 38.25
C26: Médio porte – de 101 a 300m² | D26: 1.2 | I26: 55 | J26: 137.57
C27: Grande porte – > 300m² | D27: 1.5 | I27: 150 | J27: 481.86
B28: Industrial | C28: Taxa/Tarifa de disponibilidade | E28: 15 | I28: (NA) | J28: =E28*$H$15 -> 27.59
C29: Microindústria – até 100m² | D29: 0.7 | F29: 1.2 | I29: 17 | J29: =$H$15*$E$28+$H$15*(I29-$E$28)*$F$29*D29 -> 30.68
C30: Pequeno porte – de 101 a 200m² | D30: 0.9 | I30: 30 | J30: =$H$15*$E$28+$H$15*(I30-$E$28)*$F$29*D30 -> 57.38
C31: Médio porte – de 201 e 500m² | D31: 1.2 | I31: 150 | J31: 385.12
C32: Grande porte – > 500m² | D32: 1.5 | I32: 250 | J32: 805.55
B33: Pública e filantrópica | C33: Taxa/Tarifa de disponibilidade | E33: 5 | I33: (NA) | J33: =E33*$H$15 -> 9.20
C34: Pequeno porte – até 200m² | D34: 1 | F34: 1 | I34: 25 | J34: =$H$15*$E$33+$H$15*(I34-$E$33)*$F$34*D34 -> 45.98
C35: Médio porte – entre 200 e 500m² | D35: 1.2 | I35: 65 | J35: =$H$15*$E$33+$H$15*(I35-$E$33)*$F$34*D35 -> 141.61
C36: Grande porte – > 500m² | D36: 1.5 | I36: 150 | J36: 409.21
B37: Imóveis vazios, lotes e terrenos – Taxa/Tarifa de disponibilidade | E37: 10 | I37: (NA) | J37: =H15*E37 -> 18.39
B38: Lançamento mensal da TMRS — cobrança mensal da TMRS conforme o consumo de água do imóvel.
A40: Tabela 3 — Estrutura referencial de cálculo da TMRS progressiva conforme a faixa de consumo de água
B41: Categoria de usuário, TBD e Faixas de Consumo Mensal de Água | C41: FTBi | D41: FFC | E41: VAFi mensal (> ou = FTBi) | F41: VUa (R$/m³) | G41: Exemplos-TMRS Individuais
E42: (> ou = FTBi) | G42: Volume Faturado | H42: Valor TMRS R$/mês | I42: Fórmula Geral: TMRS = TBD + VUa x FFC x (VAFi – FTBi)
B43: Residencial normal | F43: ='5.1 CalcCustoVBC-Completo'!E37 -> 1.84 | I43: FFC: fator adimensional de cálculo atribuído para a faixa de consumo da categoria/subcategoria do imóvel
B44: Taxa/Tarifa de Disponibilidade (TBD) | C44: 5 | G44: (NA) | H44: =C44*$F$43 -> 9.20
B45: De 6 a 10m³ | D45: 0.8 | E45: (Informado) | G45: 8 | H45: =$H$44+$F$43*D45*(G45-$C$44) -> 13.61
B46: de 11 a 20m³ | D46: 0.9 | G46: 15 | H46: =$H$44+$F$43*D46*(G46-$C$44) -> 25.75
B47: De 21 a 30m³ | D47: 1 | G47: 25 | H47: 45.98
B48: De 31 a 50m³ | D48: 1.1 | G48: 40 | H48: 80.00
B49: De 51 a 100m³ (limite) | D49: 1.2 | G49: 75 | H49: 163.68
B50: Residencial social
B51: Taxa/Tarifa de Disponibilidade (TBD) | C51: 3 | G51: (NA) | H51: =C51*$F$43 -> 5.52
B52: De 4 a 10m³ | D52: 0.5 | G52: 8 | H52: =$H$51+$F$43*D52*(G52-$C$51) -> 10.12
B53: De 11 a 15m³ | D53: 0.6 | G53: 15 | H53: =$H$51+$F$43*D53*(G53-$C$51) -> 18.76
B54: De 16 a 20m³ (limite) | D54: 0.7 | G54: 25 | H54: 33.84
B55: Comercial/serviços
B56: Taxa/Tarifa de Disponibilidade (TBD) | C56: 10 | G56: (NA) | H56: =C56*$F$43 -> 18.39
B57: De 11 a 20m³ | D57: 0.9 | G57: 15 | H57: =$H$56+$F$43*D57*(G57-$C$56) -> 26.67
B58: De 21 a 30m³ | D58: 1 | G58: 25 | H58: =$H$56+$F$43*D58*(G58-$C$56) -> 45.98
B59: De 31 a 50m³ | D59: 1.1 | G59: 40 | H59: 79.08
B60: De 51 a 100m³ | D60: 1.2 | G60: 75 | H60: 161.85
B61: De 101 a 300m³ (limite) | D61: 1.3 | G61: 300 | H61: 711.75
B62: Industrial
B63: Taxa/Tarifa de Disponibilidade (TBD) | C63: 15 | G63: (NA) | H63: =C63*$F$43 -> 27.59
B64: De 16 a 30m³ | D64: 0.9 | G64: 23 | H64: =$H$63+$F$43*D64*(G64-$C$63) -> 40.83
B65: De 31 a 100m³ | D65: 1 | G65: 65 | H65: =$H$63+$F$43*D65*(G65-$C$63) -> 119.54
B66: De 101 a 250m³ | D66: 1.1 | G66: 175 | H66: 351.28
B67: De 251 a 500m³ | D67: 1.2 | G67: 375 | H67: 822.10
B68: De 501 a 1000m³ (limite) | D68: 1.3 | G68: 1000 | H68: 2382.62
B69: Pública/filantrópica
B70: Taxa/Tarifa de Disponibilidade (TBD) | C70: 10 | G70: (NA) | H70: =C70*$F$43 -> 18.39
B71: De 11 a 20m³ | D71: 0.8 | G71: 15 | H71: =$H$70+$F$43*D71*(G71-$C$70) -> 25.75
B72: De 21 a 30m³ | D72: 0.9 | G72: 25 | H72: =$H$70+$F$43*D72*(G72-$C$70) -> 43.22
B73: De 31 a 50m³ | D73: 1 | G73: 40 | H73: 73.57
B74: De 51 a 100m³ | D74: 1.1 | G74: 75 | H74: 149.89
B75: De 101 a 300 m³ (limite) | D75: 1.2 | G75: 300 | H75: 658.42
B76: Imóveis vazios, lotes e terrenos | C76: 7 | G76: (NA) | H76: =C76*$F$43 -> 12.87
B77: Lançamento mensal da TMRS — cobrança mensal da TMRS conforme o consumo de água do imóvel.
A79: II - Fator de Rateio: Área Construída (área construida dos imóveis usuários)
A80: Tabela 1 — Estrutura referencial de cálculo linear da TMRS, conforme a área construída do imóvel
B81: Categoria do Usuário | C81: FTBi | D81: FCA | E81: ACIi construída do imóvel (> ou = FTBi) | F81: VUc (R$/m2) | G81: Área Limite de incidência (m2) | H81: Exemplos-TMRS Individuais | J81: Fórmula Geral: TMRS = TBD + VUc x (ACIi – FTBi) x FCA
E82: (> ou = FTBi) | H82: Área Construída | I82: Valor TMRS R$/ano | J82: VUc: Valor unitário anual do custo regulatório com base na área construída (R$/m2)
B83: Residencial social) | C83: 15 | D83: 0.5 | E83: (Informado) | F83: ='5.1 CalcCustoVBC-Completo'!E39 -> 3.62 | G83: 60 | H83: 40 | I83: =$F$83*C83+$F$83*(H83-C83)*D83 -> 99.64 | J83: ACIi: área construída do imóvel, observados a área mínima igual ou maior que FTB e o limite máximo da área construída de incidência da TMRS.
B84: Residencial | C84: 30 | D84: 1 | G84: 250 | H84: 120 | I84: =$F$83*C84+$F$83*(H84-C84)*D84 -> 434.78 | J84: FCA: fator de rateio adimensional (FR) atribuído à categoria do imóvel.
B85: Comercial e serviços | C85: 80 | D85: 1.2 | G85: 1000 | H85: 300 | I85: 1,246.36
B86: Industrial | C86: 150 | D86: 1.3 | G86: 1500 | H86: 1000 | I86: 4,547.02
B87: Pública e filantrópica | C87: 80 | D87: 1 | G87: 1000 | H87: 500 | I87: 1,811.56
B88: Imóveis vazios, lotes e terrenos | C88: 50 | D88: (NA) | G88: (NA) | H88: (NA) | I88: =F83*C88 -> 181.16
B89: Lançamento anual da TMRS — cobrança da TMRS pode ser em parcela única anual ou em parcelas mensais.
A91: Tabela 2 — Estrutura referencial de cálculo progressiva da TMRS, conforme o padrão do imóvel
B92: Categoria do Usuário | C92: Padrão / Área Construída | D92: FTBi e | E92: FAC | F92: ACIi construída do imóvel (> ou = FTBi) | G92: VUc R$/m² | H92: Exemplos-TMRS Individuais
F93: (> ou = FTBi) | H93: Área Construída | I93: Valor da TMRS R$/ano | J93: Fórmula Geral: TMRS = TBD + VUc x (ACIi – FTBi) x FAC
B94: Residencial social | C94: Taxa/Tarifa de disponibilidade | D94: 15 | F94: (Informado) | G94: ='5.1 CalcCustoVBC-Completo'!E39 -> 3.62 | H94: (NA) | I94: =D94*$G$94 -> 54.35 | J94: FAC: fator de rateio adimensional (FR) atribuído ao padrão/faixa de área construída do imóvel.
C95: Social de baixa renda | E95: 0.3 | H95: 40 | I95: =$I$94+$G$94*(H95-$D$94)*E95 -> 81.52
C96: Padrão popular(1) – até 60m² | E96: 0.6 | H96: 60 | I96: =$I$94+$G$94*(H96-$D$94)*E96 -> 152.17
B97: Residencial | C97: Taxa/Tarifa de disponibilidade | D97: 50 | H97: (NA) | I97: =D97*$G$94 -> 181.16
C98: até 60m² | E98: 0.8 | H98: 60 | I98: =$I$97+$G$94*(H98-$D$97)*E98 -> 210.14
C99: de 61 a 100m² | E99: 1 | H99: 80 | I99: =$I$97+$G$94*(H99-$D$97)*E99 -> 289.85
C100: De 101 a 250m² | E100: 1.2 | H100: 150 | I100: 615.93
C101: acima de 250m² (limite) | E101: 1.4 | H101: 251 | I101: 1,200.70
B102: Comercial e serviços | C102: Taxa/Tarifa de disponibilidade | D102: 80 | H102: (NA) | I102: =D102*$G$94 -> 289.85
C103: Micro negócio – até 100m² | E103: 0.8 | H103: 100 | I103: =$I$102+$G$94*(H103-$D$102)*E103 -> 347.82
C104: Pequeno porte – de 101 a 250m² | E104: 1 | H104: 175 | I104: =$I$102+$G$94*(H104-$D$102)*E104 -> 634.05
C105: Médio porte – de 251 a 500m² | E105: 1.5 | H105: 375 | I105: 1,893.08
C106: Grande porte – de 501 a 1000m² (limite) | E106: 2 | H106: 1000 | I106: 6,956.40
B107: Industrial | C107: Taxa/ Taxa/Tarifa de disponibilidade | D107: 150 | H107: (NA) | I107: =D107*$G$94 -> 543.47
C108: Micro indústria – até 200m² | E108: 0.8 | H108: 200 | I108: =$I$107+$G$94*(H108-$D$107)*E108 -> 688.39
C109: Pequeno porte – de 201 a 500m² | E109: 1 | H109: 350 | I109: =$I$107+$G$94*(H109-$D$107)*E109 -> 1,268.09
C110: Médio porte – de 501 e 1000m² | E110: 1.5 | H110: 750 | I110: 3,804.28
C111: Grande porte – de 1001 a 1500m² (limite) | E111: 2.5 | H111: 1500 | I111: 12,771.52
B112: Pública e filantrópica | C112: Taxa/Tarifa de disponibilidade | D112: 80 | H112: (NA) | I112: =D112*$G$94 -> 289.85
C113: Pequeno porte – até 200m² | E113: 1 | H113: 200 | I113: =$I$112+$G$94*(H113-$D$112)*E113 -> 724.63
C114: Médio porte – de 201 e 500m² | E114: 1.2 | H114: 350 | I114: =$I$112+$G$94*(H114-$D$112)*E114 -> 1,463.74
C115: Grande porte – de 501 a 1000m² (limite) | E115: 1.5 | H115: 1000 | I115: 5,289.76
B116: Imóveis vazios, lotes e terrenos | D116: 50 | H116: (NA) | I116: =G94*D116 -> 181.16
B117: Lançamento anual da TMRS — cobrança da TMRS pode ser em parcela única anual ou em parcelas mensais.
A119: III - Fator de Rateio: Quantidade de domicílios/imóveis usuários efetivos e potenciais | H119: Exemplos-TMRS Individuais
A120: Tabela 1 — Estrutura referencial de cálculo da TMRS, conforme o padrão do imóvel
B121: Categoria do Usuário | C121: Padrão / Área Construída | D121: FPI | E121: FTBi | F121: FCI | G121: VUd R$/domicílio | H121: Valor TMRS R$/domicílio | I121: Fórmulas Gerais:
B122: Residencial social | C122: Taxa/Tarifa de disponibilidade (TBD) | E122: 0.3 | G122: ='5.1 CalcCustoVBC-Completo'!E33 -> 362.31 | H122: =$G$122*E122 -> 108.69 | I122: TMRS = TBD = VUd x FTBi para domicílios usuários potenciais (imóveis vazios, lotes e terrenos)
C123: Social de baixa renda | D123: 0.5 | F123: 0.8 | H123: =$G$122*D123*F123 -> 144.93 | I123: TBD: Tarifa/Taxa básica anual de disponibilidade dos serviços.
C124: Padrão popular(1) – até 60m² | D124: 0.8 | H124: =$G$122*D124*F123 -> 231.88 | I124: VUd: Valor unitário anual por domicílio (R$/domicílio).
B125: Residencial normal | C125: Taxa/Tarifa de disponibilidade (TBD) | E125: 0.4 | H125: =$G$122*E125 -> 144.93 | I125: TMRS = TVU = VUd x FPI x FCI para domicílios usuários efetivos.
C126: até 60m² | D126: 0.8 | F126: 1 | H126: =$G$122*D126*$F$126 -> 289.85 | I126: TVU: valor anual da Taxa ou Tarifa pelo uso efetivo dos serviços.
C127: de 61 a 100m² | D127: 0.9 | H127: =$G$122*D127*$F$126 -> 326.08 | I127: FPI: Fator adimensional de rateio (FR) do custo do serviço, conforme o padrão/faixa de área construída do imóvel.
C128: De 100 a 250m² | D128: 1.1 | H128: 398.54 | I128: FCI: Fator adimensional de rateio (FR) do custo do serviço, conforme a categoria do usuário.
C129: acima de 250m² | D129: 1.3 | H129: 471.01
B130: Comercial e serviços | C130: Taxa/Tarifa de disponibilidade (TBD) | E130: 0.5 | H130: =$G$122*E130 -> 181.16
C131: Micro negócio – até 50m² | D131: 0.7 | F131: 1.2 | H131: =$G$122*D131*$F$131 -> 304.34
C132: Pequeno porte – de 51 a 100m² | D132: 0.9 | H132: =$G$122*D132*$F$131 -> 391.30
C133: Médio porte – de 101 a 300m² | D133: 1.2 | H133: 521.73
C134: Grande porte – > 300m² | D134: 1.5 | H134: 652.16
B135: Industrial | C135: Taxa/Tarifa de disponibilidade (TBD) | E135: 0.5 | H135: =$G$122*E135 -> 181.16
C136: Micro indústria – até 100m² | D136: 0.8 | F136: 1.5 | H136: =$G$122*D136*$F$136 -> 434.78
C137: Pequeno porte – de 101 a 200m² | D137: 1 | H137: =$G$122*D137*$F$136 -> 543.47
C138: Médio porte – de 201 e 500m² | D138: 1.2 | H138: 652.16
C139: Grande porte – > 500m² | D139: 1.5 | H139: 815.20
B140: Pública e filantrópica | C140: Taxa/Tarifa de disponibilidade (TBD) | E140: 0.5 | H140: =$G$122*E140 -> 181.16
C141: Pequeno porte – até 200m² | D141: 0.8 | F141: 1 | H141: =$G$122*D141*$F$141 -> 289.85
C142: Médio porte – entre 200 e 500m² | D142: 1 | H142: =$G$122*D142*$F$141 -> 362.31
C143: Grande porte – > 500m² | D143: 1.2 | H143: 434.78
B144: Imóveis vazios, lotes e terrenos | C144: Taxa/Tarifa de disponibilidade (TBD) | E144: 0.4 | H144: =G122*E144 -> 144.93
B145: Lançamento anual da TMRS — cobrança da TMRS pode ser em parcela única anual ou em parcelas mensais.
A148: RETORNAR AO SUMÁRIO
A149: 5. Hipóteses de cobrança em regime de tarifa
A150: 1.Quando o serviço for prestado mediante concessão comum ou patrocinada, incluindo todas as atividades de coleta até a destinação final adequada, a cobrança do serviço poderá ser feita diretamente pelo prestador, em regime de tarifa, por meio de documento de cobrança específico (conta/fatura). Neste caso, o prestador não receberá qualquer espécie de contraprestação do Município, exceto na forma de investimento, sendo a tarifa e outras receitas acessórias a fonte exclusiva de remuneração do serviço prestado.
A155: 2. No caso de concessão patrocinada (PPP), e desde que o prestador execute todas as etapas do serviço, também poderá ser adotado regime de tarifa. Nesse caso, a remuneração do serviço será coberta parcialmente pela tarifa e outras receitas acessórias e o restante será coberto por meio de contraprestação do Município, na forma pactuada no contrato.
A158: 3. Essas hipóteses também se aplicam quando houver prestação em regime de gestão associada, por meio de consórcio ou de convênio de cooperação, em que há delegação por meio de contrato de programa.
A160: 4. Nesses casos, a cobrança somente poderá incidir sobre os usuários efetivos do serviço, condição esta que deverá ser estabelecida pela regulação legal da cobrança, mediante critérios objetivos de aferição, tais como: ser usuário ativo dos serviços de abastecimento de água, de esgotamento sanitário e/ou de energia elétrica; o imóvel, edificado ou não, estar sendo utilizado para qualquer atividade (moradia, comércio, serviço, indústria etc.); e/ou haver adesão contratual do usuário, ainda que a adesão seja compulsória nos termos da lei.
A165: 5. A jurisprudência existente não é conclusiva sobre a possibilidade de cobrança de tarifa desses serviços, quando houver prestação direta por órgão ou entidade municipal. No entanto, por interpretação isonômica com a cobrança de tarifas pela prestação direta dos serviços de abastecimento de água e de esgotamento sanitário, pode-se concluir que também nesse caso pode ser adotado o regime de cobrança de tarifa dos usuários efetivos do serviço.
A169: 6. Os critérios de cálculo da tarifa podem ser iguais aos propostos para o cálculo da taxa ou outros definidos pela regulação, observando-se que, neste caso, se a legislação municipal não determinar o contrário, a regulação da tarifa poderá ser feita por decreto e/ou, complementarmente, por normas do ente regulador.
A172: 7. Se houver prestação do serviço de abastecimento de água universalizada na área de cobertura do serviço de coleta de resíduos sólidos domiciliares ou equiparados, a tarifa ou taxa de manejo de resíduos poderá ser calculada com base no consumo de água, utilizando estrutura similar à daquele serviço.
A174: 8. Para os imóveis, edificados ou não, que não sejam caracterizados como usuários efetivos dos serviços, somente poderá haver cobrança de taxa pela disposição e uso potencial desses serviços. Essa receita pertence ao Município ou à entidade pública prestadora do serviço, mas pode ser vinculada para o pagamento de contraprestação ao prestador ou para realização de investimentos em infraestruturas do serviço, no caso de prestação em regime de concessão.

Sheet 7 Glossário
A1: RETORNAR para o SUMÁRIO
B2: Glossário de termos, expressões e conceitos técnicos utilizados nesta ferramenta
B4: Nº ordem | C4: Termo/expressão/conceito | D4: Definição
B5: 1 | C5: Acréscimos regulatórios | D5: Corresponde aos valores de acréscimos regulatórios referentes a custos ou despesas não especificadas na Planilha "2 DadosFinanServRSU", tais como restos a pagar de despesas de custeio deste serviço do ano anterior, sem cobertura de caixa; perdas de receitas por inadimplência ou por anistia; subsídio tributário/tarifário de isenções e outros benefícios sociais; outros custos admitidos pela regulação.
B6: 2 | C6: Administração central | D6: Estrutura administrativa da Prefeitura ou da entidade municipal (autarquia/empresa) responsável pela prestação do serviço de manejo de resíduos sólidos urbanos, correspondente às atividades-meio da Administração, tais como Direção-geral, Secretaria/Departamento de Administração, Secretaria/Departamento de Finanças, Secretaria/Departamento de Planejamento, Procuradoria Jurídica etc.
B7: 3 | C7: Ano-base de cálculo dos custos | D7: O último ano civil completo cujos custos realizados dos serviços serão tomados como base para a estimativa dos custos ou do Valor Básico de Cálculo (VBC) para o ano em que vigorarão as taxas ou tarifas calculadas.
B8: 4 | C8: Ativo imobilizado líquido | D8: Corresponde ao valor total de aquisição, construção ou implantação dos ativos imobilizados menos o valor total acumulado da depreciação e exaustão dos mesmos.
B9: 5 | C9: Ativos imobilizados | D9: Todos os bens móveis e imóveis utilizados ou vinculados à prestação dos serviços.
B10: 6 | C10: Balancetes analíticos | D10: Relatórios detalhados da execução orçamentária e dos registros e movimentações contábeis das variações patrimoniais ativas e passivas, das receitas e das depesas do Município ou da entidade municipal autônoma (autarquia/empresa) responsável pela prestação do serviço.
B11: 7 | C11: Centros de custos | D11: Correspondem ao conjunto de unidades administrativas e/ou de atividades específicas relacionadas à prestação do serviço, para as quais se deseja apropriar e gerenciar os respectivos custos, tais como atividades da Administração Central, atividade de coleta convencional de resíduos, atividade de coleta seletiva, atividade de triagem e/ou de compostagem, atividade de implantação e operação de aterro sanitário etc.
B12: 8 | C12: Custo contábil | D12: Custo do serviço apurado com base nas informações contábeis relativas às despesas correntes vinculadas ao serviço, mais as depesas de depreciação e exaustão de ativos imobilizados, inclusive despesas provisionadas.
B13: 9 | C13: Custo regulatório | D13: Custo do serviço apurado depois dos ajustes de acréscimos e deduções regulatórias estabelecidos pela regulação, cujo valor constitui a base de cálculo (VBC) das taxas ou tarifas pela disposição e prestação do serviço de manejo de resíduos sólidos urbanos.
B14: 10 | C14: Deduções regulatórias | D14: Valores de deduções definidas pela regulação referentes a receitas acessórias e eventuais, receitas de multas e encargos por inadimplência, valores de multas ou encargos contratuais pagos a terceiros; despesa com publicidade não institucional; e outros gastos ineficientes previstos pela regulação.
B15: 11 | C15: Depreciação de ativo imobilizado | D15: Parcela do valor de aquisição, construção ou implantação do ativo imobilizado vinculado ao serviço que é incorporada/apropriada ao custo da prestação do serviço, equivalente à fração (%) de desgaste anual desse bem, proporcional à sua vida útil estimada. Forma de recuperação do capital investido, para formação de fundo rotativo (art. 13, Lei nº 11.445/2007) para reposição dos bens após sua vida útil ou para financiar novos investimentos em expansão ou melhoria do serviço, No caso dos bens móveis, que podem ser vendidos ao final de sua vida útil, o cálculo da depreciação incide sobre o valor de aquisição menos o percentual do valor residual esperado pelo qual o bem poderá ser vendido após a desativação (desmobilização) do seu uso no serviço.
B16: 12 | C16: Despesas com a cobrança e arrecadação de taxas e tarifas | D16: Despesas ou gastos com o processamento e a emissão de documentos/contas de arrecadação das taxas ou tarifas, bem como despesas com tarifas bancárias devidas pela arrecadação dos valores pela rede bancária ou de seus credenciados.
B17: 13 | C17: Despesas com pessoal contratado | D17: Valor total pago ou devido no exercício a empresas terceirizadoras de mão de obra ou a profissionais autônomos, lotados em atividades continuadas, substituindo ou complementando o quadro de pessoal próprio.
B18: 14 | C18: Despesas com pessoal próprio | D18: Valor de todas as remunerações pagas ou devidas no exercício aos servidores/empregados próprios da Prefeitura ou da entidade municipal alocados à prestação do serviço de manejo de resíduos sólidos urbanos, inclusive provisões de férias e outros benefícios futuros dos servidores/empregados, bem como as despesas com contribuições previdenciárias patronais, vale-transporte, vale-alimentação, auxílio-educação e outros eventuais benefícios e vantagens.
B19: 15 | C19: Despesas de regulação e fiscalização dos serviços | D19: Valor devido à entidade reguladora e fiscalizadora da prestação do serviço, particularmente quando houver delegação contratual da prestação do serviço a terceiros.
B20: 16 | C20: Despesas diretas — administrativas e operacionais | D20: Despesas ou gastos em atividades administrativas e operacionais diretamente relacionadas com a prestação do serviço.
B21: 17 | C21: Despesas extraordinárias ou eventuais | D21: Despesas de ocorrência eventual ou em situações extraordinárias, não provisionadas ou imprevisíveis, tais como desativação de lixões, indenizações civis e passivos trabalhistas, ocorrências de greves, calamidades e catástrofes etc. Devem ser consideradas somente as despesas identificáveis e exclusivas das atividades relacionadas ao serviço.
B22: 18 | C22: Despesas financeiras | D22: Despesas de juros e demais encargos contratuais, tais como taxa de risco, taxa de administração, correção monetária ou cambial, sobre empréstimos para investimentos em infraestruturas dos serviços ou para capital de giro.
B23: 19 | C23: Despesas indiretas (administrativas ou de apoio) | D23: Parcela das despesas da administração geral da Prefeitura, correspondentes às suas atividades-meio (Secretarias de Administração, de Finanças, de Planejamento, Procuradoria Jurídica etc.) e, se for o caso, da(s) Secretaria(s) a que estejam subordinadas, de forma não exclusiva, as unidades (Departamento, Divisão, Setor etc.) responsáveis pela prestação do serviço de coleta e destinação final dos resíduos sólidos urbanos, cujo valor pode ser incorporado/apropriado ao custo do serviço. O mesmo se aplica quando o serviço for prestado por autarquia ou empresa municipal que também seja responsável pela prestação de outros serviços.
B24: 20 | C24: Dívida ativa | D24: Dívidas vencidas, relativas a anos anteriores ao ano corrente, referentes a tributos e outras receitas correntes, inclusive taxas e tarifas devidas por usuários de serviços públicos. Geralmente, essas dívidas são registradas/lançadas em contas contábeis específicas do ativo patrimonial no encerramento do ano corrente ou logo no início do ano seguinte.
C25: Economia (de água) | D25: Unidade imobiliária autônoma correspondente a cada imóvel ou parte independente do mesmo, inclusive terreno não edificado, com registro individual no cadastro imobiliário do município ou inscrito no cadastro de usuários do prestador do serviço como economia ou unidade individual usuária dos serviços públicos de saneamento básico.
B26: 21 | C26: Exaustão de ativo imobilizado | D26: Definição igual à da depreciação que se aplica ao ativo correspondente ao aterro sanitário ou à parte dele que será desativada e encerrada definitivamente ao final de sua vida útil, quando já não poderá receber mais resíduos/rejeitos e cuja área não poderá ser vendida ou utilizada para qualquer atividade vinculada ao serviço.
B27: 22 | C27: Fato gerador da cobrança | D27: Utilização, efetiva ou potencial, de serviço público específico e divisível prestado ao contribuinte ou posto à sua disposição em efetivo funcionamento, consideradas as atividades e situações de sua prestação ou disposição em que poderão ser cobradas taxas ou tarifas diretamente dos usuários/contribuintes.
B28: 23 | C28: Isenções e subsídios legais | D28: Isenções — benefícios fiscais de não pagamento de tributos (impostos, taxas e contribuições) ou de preços públicos (tarifas) concedidos por lei para determinadas categorias de contribuintes ou de usuários de serviços públicos. Subsídios — benefícios financeiros geralmente concedidos a cidadãos de baixa renda ou a usuários de serviços públicos, sob a forma de desconto integral ou parcial do preço do bem ou serviço (por exemplo, farmácia popular, bolsa escolar) ou da taxa ou tarifa de serviço público, ou mediante pagamento ou repasse de um valor monetário destinado à aquisição ou ao pagamento do bem ou serviço pelo próprio beneficiário.
B29: 24 | C29: Materiais de consumo | D29: Todos os materiais, exceto energia elétrica e combustíveis e lubrificantes, consumidos em quaisquer atividades da prestação dos serviços, incluindo uniformes, equipamentos individuais de segurança, material de escritório, material de limpeza e conservação, consumo de água etc. Não inclui materiais de construção e outros empregados na construção, implantação, reposição ou reforma de quaisquer edificações ou infraestruturas operacionais vinculadas ao serviço, os quais devem ser apropriados como investimentos em ativos imobilizados.
B30: 25 | C30: PIS/PASEP (Programa de Integração Social/Programa de Formação do Patrimônio do Servidor Público) | D30: Contribuição social incidente sobre a receita total do serviço, originária da cobrança de taxas ou tarifas e de preços públicos, de repasses orçamentários ou subvenções e doações de outros entes públicos ou de terceiros e quaisquer receitas eventuais vinculadas ao serviço. A alíquota aplicável ao setor público é de 1%.
B31: 26 | C31: Política de cobrança ou de remuneração de serviço público | D31: Compreende as normas de regulação, os atos e procedimentos administrativos, que definem o regime de cobrança (tributário ou tarifário), o fato gerador, o contribuinte ou usuário devedor, a base e os critérios de cálculo, a estrutura e forma de cálculo da remuneração (taxa ou tarifa) devida pela disposição e prestação e pelo uso efetivo ou potencial do serviço público.
B32: 27 | C32: Provisões de despesas contingentes — cíveis, trabalhistas e outras | D32: Provisão de despesas previsíveis com gastos ou desembolsos futuros relativos a ações civis ou trabalhistas ajuizadas no ano; encerramento de aterro sanitário; desativação de lixão etc.
B33: 28 | C33: Regime e forma de prestação do serviço | D33: A Constituição Federal (art, 175) admite dois regimes de prestação do serviço público: o Regime de Prestação Direta, que pode ser centralizada ou descentralizada, e o Regime de Prestação Indireta, mediante delegação a terceiros, que pode ser em regime de concessão precedida de licitação ou, em regime de gestão associada, autorizada por consórcio público ou por convênio de cooperação. No regime de prestação direta, a forma de prestação pode ser centralizada, feita por órgão da estrutura interna da Administração Direta, ou descentralizada, feita por autarquia ou empresa municipal, integrante da Administração Indireta do Município, inclusive consórcio público do qual participe, quando este for o próprio prestador. No Regime de Prestação Indireta, a prestação pode ser feita por qualquer entidade privada ou estatal, mediante contrato de concessão precedida de licitação ou, no âmbito da gestão associada, por entidade pública ou estatal de outro ente da Federação, mediante contrato de programa, autorizada por consórcio público do qual o Município participe ou por convênio de cooperação.
B34: 29 | C34: Taxa de remuneração do ativo imobilizado líquido | D34: Valor percentual estabelecido pela regulação do serviço como remuneração anual do ativo imobilizado em operação (capital investido), incidente sobre o valor ou saldo líquido médio anual dos ativos imobilizados, deduzidas a depreciação e exaustão, cujo montante pode/deve ser incorporado ao custo do serviço para efeito de determinação do custo regulatório e do Valor Básico de Cálculo (VBC) da taxa ou tarifa.
B35: 30 | C35: Taxa SELIC | D35: Taxa do Sistema Especial de Liquidação e de Custódia (SELIC) em que são transacionados títulos públicos federais. Funciona como taxa básica de juros da economia, referência para todas as taxas de juros do país, como as taxas de juros dos empréstimos, dos financiamentos e das aplicações financeiras.
B36: 31 | C36: Valor Básico de Cálculo (VBC) | D36: Valor unitário do custo regulatório dos serviços que serve de base para o cálculo dos valores das taxas ou tarifas individuais aplicadas para cada usuário ou contribuinte, conforme os critérios de cálculo definidos pela regulação. A planilha/aba "6 Tabelas_Taxas_PreçosUnitários" apresenta exemplos de critérios de cálculo das taxas ou tarifas individuais.

Sheet 8 OrientaçõesTabelasAuxiliares
B1: TABELA AUXILIAR PARA LEVANTAMENTO E CONTROLE GERENCIAL DE ATIVOS IMOBILIZADOS DO SERVIÇO DE MANEJO DE RESÍDUOS | H1: RETORNAR para o SUMÁRIO
B2: Geralmente, o sistema de gestão patrimonial das Prefeituras só controla os bens móveis (veículos, mobiliários, computadores, máquinas etc.). A maioria dos municípios também não tem cadastro técnico e/ou registros regulares em cartórios de seus bens móveis e imóveis. As normas de contabilidade aplicáveis ao setor público orientam para que os municípios façam o controle e a contabilidade patrimonial, inclusive a depreciação de seus bens móveis e imóveis, especialmente os bens vinculados à prestação de serviços públicos continuados e remunerados por taxas ou tarifas. De outro lado, para que se possa considerar as despesas de depreciação desses bens como custo dos serviços cobertos por taxas ou tarifas, é necessário que o Município ou o prestador dos serviços tenha algum tipo de controle contábil ou gerencial desses bens, que permita calcular/estimar essas despesas. A tabela abaixo é um modelo que pode ser adotado para o controle gerencial dos bens móveis e imóveis (ativos imobilizados) vinculados aos serviços de manejo de resíduos sólidos urbanos, enquanto não forem implantados os procedimentos contábeis para esse fim.
B3: Atividade ou área de alocação dos bens ==>>> | D3: Coleta de Resíduos | F3: Unidades de Triagem/Compostagem | H3: Unidade de Transbordo e Ecopontos | J3: Aterro ou Central de Tratamento | L3: Bens de Uso Geral do Serviço RSU
B4: Descrição dos bens | C4: Taxa de depreciação anual (%) | D4: Mês/Ano de Aquisição | E4: Valor | F4: Mês/Ano de Aquisição | G4: Valor | H4: Mês/Ano de Aquisição | I4: Valor | J4: Mês/Ano de Aquisição | K4: Valor | L4: Mês/Ano de Aquisição | M4: Valor | O4: Legenda de cores das células:
B5: Terrenos de uso permanente | C5: 0% | P5: Verde - Informação a ser fornecida pelo usuário
P6: Vermelho - Erro de cálculo nesta célula
B7: Terreno exclusivo do aterro sanitário | C7: 4% | P7: Amarelo - Resultado de cálculo
P8: Branco - Outros resultados de cálculo
B9: Edificações, instalações e infraestruturas gerais exclusivas do aterro sanitário | C9: 4% | P9: Azul - Células de totalização, resultados de cálculo a medida que você alimenta os dados
P10: Campos sem informações. Células bloqueadas para inserção de dados
B12: Células de aterramento | C12: 50%
B16: Edificações, estruturas e instalações permanentes | C16: 2%
B19: Veículos, máquinas e equipamentos operacionais | C19: 10%
B23: Mobiliários e outros bens móveis | C23: 10%
A27: II | B27: Apropriação das despesas administrativas e operacionais exclusivas com o serviço de manejo de resíduos sólidos urbanos
B28: Esta tabela destina-se a apoiar os gestores do serviço para o levantamento ou cálculo estimativo e gerenciamento das despesas administrativas e operacionais com o serviço de manejo de resíduos sólidos urbanos, caso não disponham de informações identificáveis dessas despesas no sistema de contabilidade da Prefeitura. Serve também para estimar o custo do serviço no primeiro ano de sua implantação, para efeito de instituição e cálculo das taxas ou tarifas que vigorarão nesse primeiro ano. Os valores subtotais das despesas dos itens 1 a 6 e das despesas do item 7 devem ser transportados (copiados) para a planilha/aba "5 Cálculo_Custo e VBC" dessa ferramenta.
B29: 1 Despesas com pessoal próprio (Informar os nomes do pessoal lotado nas atividades abaixo) | D29: Cargo/Função | E29: Informar as despesas com pessoal nos períodos abaixo (remunerações, contribuições previdenciárias, assistência médica, vale-refeição e outros benefícios)
E30: 2018 | F30: 2019 | G30: 2020 | H30: 2020-01-01 | I30: 2020-02-01 | J30: 2020-03-01 | K30: 2020-04-01 | L30: 2020-05-01 | M30: 2020-06-01 | N30: 2020-07-01 | O30: 2020-08-01 | P30: 2020-09-01 | Q30: 2020-10-01 | R30: 2020-11-01 | S30: 2020-12-01
B31: 1.1 Gerência e apoio administrativo
B32: (Nome 1...)
B33: (Nome 2...)
B34: .................
B36: 1.2 Serviço de coleta convencional e seletiva
B37: (Nome 1...)
B38: (Nome 2...)
B39: (Nome 3...)
B40: (Nome 4...)
B41: .................
B43: 1.3 Serviço de triagem/compostagem
B44: (Nome 1...)
B45: (Nome 2...)
B46: .................
B48: 1.4 Serviço de transbordo
B49: (Nome 1...)
B50: (Nome 2...)
B51: .................
B53: 1.5 Serviço de operação do aterro sanitário
B54: (Nome 1...)
B55: (Nome 2...)
B56: (Nome 3...)
B57: (Nome 4...)
B58: .................
B60: Subtotal | E60: =SUM(E31:E59) -> 0.00 | F60: =SUM(F31:F59) -> 0.00 | G60: 0.00 | H60: 0.00 | I60: 0.00 | J60: 0.00 | K60: 0.00 | L60: 0.00 | M60: 0.00 | N60: 0.00 | O60: 0.00 | P60: 0.00 | Q60: 0.00 | R60: 0.00 | S60: 0.00
B62: 2 Despesas com pessoal/mão de obra terceirizada | E62: Informar as despesas com o pessoal/mão de obra terceirizada nos períodos abaixo (Valores pagos/devidos às empresas ou aos autônomos contratados)
E63: 2018 | F63: 2019 | G63: 2020 | H63: 2020-01-01 | I63: 2020-02-01 | J63: 2020-03-01 | K63: 2020-04-01 | L63: 2020-05-01 | M63: 2020-06-01 | N63: 2020-07-01 | O63: 2020-08-01 | P63: 2020-09-01 | Q63: 2020-10-01 | R63: 2020-11-01 | S63: 2020-12-01
B64: 2.1 Gerência e apoio administrativo
B65: 2.2 Serviço de coleta convencional e seletiva
B66: 2.3 Serviço de triagem/compostagem
B67: 2.4 Serviço de transbordo
B68: 2.5 Serviço de operação do aterro sanitário
B69: Subtotal | E69: =SUM(E64:E68) -> 0.00 | F69: =SUM(F64:F68) -> 0.00 | G69: 0.00 | H69: 0.00 | I69: 0.00 | J69: 0.00 | K69: 0.00 | L69: 0.00 | M69: 0.00 | N69: 0.00 | O69: 0.00 | P69: 0.00 | Q69: 0.00 | R69: 0.00 | S69: 0.00
B71: 3 Despesas com serviços terceirizados (exceto mão de obra) | E71: Informar as despesas com serviços terceirizados nos períodos abaixo (Valores pagos/devidos a prestadores de serviços contratados)
E72: 2018 | F72: 2019 | G72: 2020 | H72: 2020-01-01 | I72: 2020-02-01 | J72: 2020-03-01 | K72: 2020-04-01 | L72: 2020-05-01 | M72: 2020-06-01 | N72: 2020-07-01 | O72: 2020-08-01 | P72: 2020-09-01 | Q72: 2020-10-01 | R72: 2020-11-01 | S72: 2020-12-01
B73: 3.1 Gerência e apoio administrativo
B74: 3.2 Serviço de coleta convencional e seletiva
B75: 3.3 Serviço de triagem/compostagem
B76: 3.4 Serviço de transbordo
B77: 3.5 Serviço de operação do aterro sanitário
B78: Subtotal | E78: =SUM(E73:E77) -> 0.00 | F78: 0.00 | G78: 0.00 | H78: 0.00 | I78: 0.00 | J78: 0.00 | K78: 0.00 | L78: 0.00 | M78: 0.00 | N78: 0.00 | O78: 0.00 | P78: 0.00 | Q78: 0.00 | R78: 0.00 | S78: 0.00
B80: 4 Despesas com aluguéis de imóveis, veículos, máquinas ou equipamentos | E80: Informar as despesas com aluguel e outros custos acessórios da locação de imóveis, veículos, máquinas e equipamentos.
E81: 2018 | F81: 2019 | G81: 2020 | H81: 2020-01-01 | I81: 2020-02-01 | J81: 2020-03-01 | K81: 2020-04-01 | L81: 2020-05-01 | M81: 2020-06-01 | N81: 2020-07-01 | O81: 2020-08-01 | P81: 2020-09-01 | Q81: 2020-10-01 | R81: 2020-11-01 | S81: 2020-12-01
B82: 4.1 Gerência e apoio administrativo
B83: 4.2 Serviço de coleta convencional e seletiva
B84: 4.3 Serviço de triagem/compostagem
B85: 4.4 Serviço de transbordo
B86: 4.5 Serviço de operação do aterro sanitário
B87: Subtotal | E87: =SUM(E82:E86) -> 0.00 | F87: 0.00 | G87: 0.00 | H87: 0.00 | I87: 0.00 | J87: 0.00 | K87: 0.00 | L87: 0.00 | M87: 0.00 | N87: 0.00 | O87: 0.00 | P87: 0.00 | Q87: 0.00 | R87: 0.00 | S87: 0.00
B89: 5 Despesas com combustível e manutenção de veículos, máquinas e equipamentos | E89: Informar as despesas com combustível, lubrificantes e manutenção de veículos, máquinas e equipamentos
E90: 2018 | F90: 2019 | G90: 2020 | H90: 2020-01-01 | I90: 2020-02-01 | J90: 2020-03-01 | K90: 2020-04-01 | L90: 2020-05-01 | M90: 2020-06-01 | N90: 2020-07-01 | O90: 2020-08-01 | P90: 2020-09-01 | Q90: 2020-10-01 | R90: 2020-11-01 | S90: 2020-12-01
B91: 5.1 Gerência e apoio administrativo
B92: 5.2 Serviço de coleta convencional e seletiva
B93: 5.3 Serviço de triagem/compostagem
B94: 5.4 Serviço de transbordo
B95: 5.5 Serviço de operação do aterro sanitário
B96: Subtotal | E96: =SUM(E91:E95) -> 0 | F96: 0 | G96: 0 | H96: 0 | I96: 0 | J96: 0 | K96: 0 | L96: 0 | M96: 0 | N96: 0 | O96: 0 | P96: 0 | Q96: 0 | R96: 0 | S96: 0
B98: 6 Despesas com insumos, energia, água e materiais de consumo (exceto combustível) | E98: Informar as despesas com insumos, energia, água e materiais de consumo
E99: 2018 | F99: 2019 | G99: 2020 | H99: 2020-01-01 | I99: 2020-02-01 | J99: 2020-03-01 | K99: 2020-04-01 | L99: 2020-05-01 | M99: 2020-06-01 | N99: 2020-07-01 | O99: 2020-08-01 | P99: 2020-09-01 | Q99: 2020-10-01 | R99: 2020-11-01 | S99: 2020-12-01
B100: 6.1 Gerência e apoio administrativo
B101: 6.2 Serviço de coleta convencional e seletiva
B102: 6.3 Serviço de triagem/compostagem
B103: 6.4 Serviço de transbordo
B104: 6.5 Serviço de operação do aterro sanitário
B105: Subtotal | E105: =SUM(E100:E104) -> 0 | F105: 0 | G105: 0 | H105: 0 | I105: 0 | J105: 0 | K105: 0 | L105: 0 | M105: 0 | N105: 0 | O105: 0 | P105: 0 | Q105: 0 | R105: 0 | S105: 0
B107: 7 Demais despesas | E107: Informar outras despesas com a prestação do serviço, conforme indicadas nesta tabela
E108: 2018 | F108: 2019 | G108: 2020 | H108: 2020-01-01 | I108: 2020-02-01 | J108: 2020-03-01 | K108: 2020-04-01 | L108: 2020-05-01 | M108: 2020-06-01 | N108: 2020-07-01 | O108: 2020-08-01 | P108: 2020-09-01 | Q108: 2020-10-01 | R108: 2020-11-01 | S108: 2020-12-01
B109: 7.1 Despesas com a cobrança e arrecadação de taxas e tarifas
B110: 7.2 Despesas diversas
B111: 7.3 Despesas extraordinárias ou eventuais
B112: 7.4 Provisões de despesas contingentes — cíveis e trabalhistas
A114: III | B114: Algumas informações e parâmetros referenciais para cálculo estimativo dos custos de serviços/atividades de manejo de resíduos sólidos urbanos
B115: A tabela abaixo apresenta informações e parâmetros extraídos do Sistema Nacional de Informações sobre Saneamento (SNIS) relativo ao ano de 2017, publicado em 2018 no site www.snis.gov.br, abrangendo 3.556 municípios brasileiros. Portanto, para eventual utilização dos valores de despesas apontados nesta tabela, deve-se atualizá-los com as informações do SNIS de ano mais recente e corrigidos para o ano corrente, utilizando o índice de reajuste adotado pelo município indicado na planilha/aba "1 Identificação e Parâmetros" — linha 13, colunas J e K.
B116: Faixa populacional do município (hab.) | C116: % de municípios com cobrança do serviço | D116: % Receita Anual Arrecadada/ Despesa total | E116: Despesa anual média/hab atendido | F116: Despesa média/Ton RDO+RPU | G116: Despesa média anual/Trabalhador | H116: Quantidade média de pessoal — próprio + terceirizado | L116: Quant de veículos — coleta
H117: Total | I117: Desvio-Padrão Médio | J117: Coleta | K117: Desvio-Padrão Médio | L117: Média/município | M117: Desvio-Padrão Médio
B118: 0 a 5.000 | C118: 47.6% | D118: 22.1% | E118: R$76.24 | F118: R$257.24 | G118: R$34,354.12 | H118: 6 | I118: 3 | J118: 4 | K118: 2 | L118: 2 | M118: 1
B119: 5.001 a 10.000 | C119: 42.7% | D119: 37.1% | E119: R$57.27 | F119: R$190.06 | G119: R$42,351.07 | H119: 8 | I119: 4 | J119: 5 | K119: 2 | L119: 2 | M119: 1
B120: 10.001 a 20.000 | C120: 44.3% | D120: 40.7% | E120: R$54.35 | F120: R$174.40 | G120: R$50,127.70 | H120: 13 | I120: 6 | J120: 9 | K120: 4 | L120: 3 | M120: 2
B121: 20.001 a 50.000 | C121: 42.3% | D121: 49.3% | E121: R$57.28 | F121: R$168.59 | G121: R$65,581.61 | H121: 23 | I121: 12 | J121: 17 | K121: 9 | L121: 5 | M121: 2
B122: 50.001 a 100.000 | C122: 51.6% | D122: 61.8% | E122: R$64.26 | F122: R$194.38 | G122: R$97,837.91 | H122: 40 | I122: 16 | J122: 29 | K122: 12 | L122: 9 | M122: 4
B123: 100.001 a 200.000 | C123: 61.0% | D123: 67.6% | E123: R$73.57 | F123: R$235.74 | G123: R$127,348.66 | H123: 77 | I123: 28 | J123: 55 | K123: 21 | L123: 14 | M123: 5
B124: 200,001 a 500.000 | C124: 65.6% | D124: 67.7% | E124: R$91.30 | F124: R$293.66 | G124: R$156,054.37 | H124: 174 | I124: 86 | J124: 123 | K124: 58 | L124: 27 | M124: 12
B125: 500.001 a 1000.000 | C125: 79.2% | D125: 33.5% | E125: R$94.65 | F125: R$253.75 | G125: R$153,510.06 | H125: 407 | I125: 159 | J125: 281 | K125: 100 | L125: 59 | M125: 23
B126: acima de 1000.001 | C126: 64.7% | D126: 90.3% | E126: R$123.31 | F126: R$317.73 | G126: R$173,594.19 | H126: 1875 | I126: 1389 | J126: 1261 | K126: 952 | L126: 180 | M126: 114
B127: Fonte: SNIS 2017 | F127: Valores a preços de 2017

Sheet 9 Dados_Exerc_Ferramenta
A1: Município de Serra do Juda - MG | F1: DESPESAS OPERACIONAIS DA COLETA CONVENCIONAL | J1: Reajuste estimado
A2: Gestor/Prestador: Secretaria de Serviços Urbanos | F2: Itens de despesas | G2: =B4 -> 2020 | H2: =C4 -> 2021 | I2: =D4 -> 2022
A3: Ano de implantação da Taxa/Tarifa de Manejo de Resíduos | D3: 2022 | F3: Pessoal próprio (Remuneração + encargos) | G3: =5500*13+2*3800*13+3*2700*13 -> 275,600.00 | H3: =G3*(1+B25+0.02) -> 296,132.20 | J3: INPC + | K3: 2%
A4: Informações gerais do Município | B4: =C4-1 -> 2020 | C4: =D4-1 -> 2021 | D4: =D3 -> 2022 | F4: Pessoal contratado | G4: 0.00 | H4: 0.00
A5: População total | B5: 10,050 | C5: =B5*1.02 -> 10,251 | D5: =C5*(1+D6) -> 10,436 | F5: Serviços de terceiros | G5: 50,000.00 | H5: =G5*(1+B25) -> 52,725.00 | J5: INPC
A6: Taxa de crescimento da população | B6: 2.2% | C6: 2.0% | D6: 1.8% | F6: Aluguel de imóvel | G6: 0.00 | H6: 0.00
A7: Taxa de crescimento domicílos residenciais | B7: 2.5% | C7: 2.2% | D7: 2.0% | F7: Aluguel de veículos e equipamentos | G7: 0.00 | H7: 0.00
A8: Domicilios Totais - Urbanos e aglomerados rurais | B8: 3,365 | C8: 3,440 | D8: 3,505 | F8: Combustível e lubrificantes | G8: 26,500.00 | H8: =G8*(1+C26+0.1) -> 31,561.50 | J8: INPC+ | K8: 4%
A9: Domicílios/economias com abastecimento de água | B9: =SUM(B10:B13) -> 3,296 | C9: =SUM(C10:C13) -> 3,370 | D9: =SUM(D10:D13) -> 3,438 | F9: Manutenção de veículos | G9: 17,500.00 | H9: =G9*(1+B26) -> 18,291.00 | J9: INPC
A10: Domicílios Residenciais | B10: 3,150 | C10: =B10*(1+C7) -> 3,219 | D10: =C10*(1+D7) -> 3,284 | F10: Outras | G10: 12,000.00 | H10: 15,000.00 | J10: INPC
A11: Domicílios Comerciais | B11: 125 | C11: 127 | D11: 130 | F11: TOTAL | G11: =SUM(G3:G10) -> 381,600.00 | H11: =SUM(H3:H10) -> 413,709.70 | I11: =SUM(I3:I10) -> 0.00
A12: Domicílios Industriais | B12: 3 | C12: 3 | D12: 3
A13: Domicílios Públicos | B13: 18 | C13: 21 | D13: 21 | F13: Despesas operacionais - Aterros Sanitário | J13: Reajuste estimado
A14: Domicílios totais atendidos pela Coleta de RDO | B14: 98% | C14: 98% | D14: 99% | F14: Itens de despesas | G14: =G2 -> 2020 | H14: =H2 -> 2021 | I14: =I2 -> 2022
B15: =B8*B14 -> 3,298 | C15: =C8*C14 -> 3,371 | D15: =D8*D14 -> 3,470 | F15: Pessoal próprio (Remuneração + encargos) | G15: =5500*13+3800*13+3*2700*13 -> 226,200.00 | H15: =G15*(1+B25+0.02) -> 243,051.90 | J15: INPC + | K15: 2%
A16: Quantidade de Resíduos Coletada | F16: Pessoal contratado | G16: 0.00 | H16: 0.00
A17: Coleta convencional (RDO+RPU) (ton) | B17: =B5*0.7*365/1000 -> 2,568 | C17: =C5*0.7*365/1000 -> 2,619 | D17: =D5*0.7*365/1000 -> 2,666 | F17: Serviços de terceiros | G17: 0.00 | H17: 0.00
A18: Coleta Seletiva (ton) | B18: 0 | C18: 0 | F18: Aluguel de imóvel | G18: 0.00 | H18: 0.00
A19: Quantidade média de RDO gerado por hab | B19: 0,7 kg/hab/dia | F19: Aluguel de veículos e equipamentos | G19: 0.00 | H19: 0.00
F20: Combustível | G20: 21,000.00 | H20: =G20*(1+C26+0.1) -> 25,011.00 | J20: INPC+ | K20: 4%
A21: Volume de água consumida (m³) | B21: =SUM(B10:B13)*16*12 -> 632,832 | C21: =SUM(C10:C13)*16.5*12 -> 667,319 | D21: =SUM(D10:D13)*16*12 -> 660,036 | F21: Manutenção de veículos | G21: 16,000.00 | H21: =G21*1.07 -> 17,120.00 | J21: INPC
A22: Volume de água faturada (m³) | B22: =B9*5+B21 -> 649,312 | C22: =C9*5+C21 -> 684,171 | D22: =D9*5+D21 -> 677,224 | F22: Outras | G22: 15,500.00 | H22: 14,200.00 | J22: INPC
A23: Volume médio faturado por economia (m³/econ) | B23: =B22/B9/12 -> 16.4 | C23: =C22/C9/12 -> 16.9 | D23: =D22/D9/12 -> 16.4 | F23: TOTAL | G23: =SUM(G15:G22) -> 278,700.00 | H23: =SUM(H15:H22) -> 299,382.90 | I23: =SUM(I15:I22) -> 0.00
A24: Indicadores econômicos | B24: =B4 -> 2020 | C24: =C4 -> 2021 | D24: =D4 -> 2022
A25: INPC | B25: 5.45% | C25: 9.25% | D25: 4.65% | F25: INFORMAÇÕES REGULATÓRIAS
A26: IPCA | B26: 4.52% | C26: 9.10% | D26: 4.45% | F26: Repasse do custo regulatório aos usuários | G26: 100%
A27: SELIC (média do ano) | B27: 2.70% | C27: 9.25% | D27: 10.25% | F27: Limites de apropriação ao custo do serviço em relação ao custo contábil
F28: Despesas indiretas da administração central | G28: 10%
A29: INVESTIMENTOS | F29: Despesas de depreciação/exaustão | G29: 100%
A30: 1. Implantação do Aterro Sanitário | F30: Perdas de receitas - inadimplência | G30: 3.0%
A31: Início de operação: Janeiro | B31: =B4 -> 2020 | F31: Isenções e subsídios tributário/tarifário | G31: 2.5%
A32: Vida útil total esperada | B32: 20 anos | F32: Critério de reajuste dos custos para o ano atual: | G32: INPC - média do ano base e da previsão para o ano atual
A33: Investimentos iniciais até Dez/2020 | B33: =SUM(B34:B39) -> R$ 510,500.00 | C33: % Depreciação Exaustão | F33: Taxa de remuneração dos investimentos | G33: IPCA + | H33: 2%
A34: Aquisição da área (Terreno) | B34: R$ 75,000.00 | C34: =1/20 -> 5.00% | D34: =B34*C34 -> 3,750.00 | F34: Previsão de custo da cobrança junto com a conta de água = R$/conta-fatura/mês | G34: R$3.50
A35: Preparação e infraestruturas do Aterro (acesso,mov terra, cercamento, drenagem, etc.) | B35: R$ 250,000.00 | C35: =1/20 -> 5.00% | D35: 12,500.00 | F35: =(B34+B35)*(1-C35*1.5) -> R$300,625.00 | G35: =F35-(B34+B35)*C35 -> R$284,375.00
A36: Balança rodoviária (aquisição e instalação) | B36: R$ 50,000.00 | C36: 5.00% | D36: 2,500.00 | F36: =B36*(1-C36*1.5) -> R$46,250.00 | G36: =F36-B36*C36 -> R$43,750.00
A37: Edificações (Portaria, escritório,banheiro, etc.) | B37: R$ 55,000.00 | C37: 5.00% | D37: 2,750.00 | F37: =B37*(1-C37*1.5) -> R$50,875.00 | G37: =F37-B37*C37 -> R$48,125.00
A38: Outros gastos iniciais (licenças, cartórios, etc.) | B38: R$ 15,000.00 | C38: 5.00% | D38: 750.00 | F38: =B38*(1-C38*1.5) -> R$13,875.00 | G38: R$13,125.00
A39: Implantação da 1ª Célula - tempo de uso = 2 anos | B39: R$ 65,500.00 | C39: 50.00% | D39: 32,750.00 | F39: =B39*0.25 -> R$16,375.00 | G39: =B41*0.75 -> R$56,250.00
A40: TOTAL | B40: =SUM(B34:B39) -> 510,500.00 | D40: =SUM(D34:D39) -> 55,000.00 | F40: =SUM(F35:F39) -> R$428,000.00 | G40: =SUM(G35:G39) -> R$445,625.00
A41: Implantação 2ª Célula em Dez/2021 - tempo de uso 2 anos | B41: R$ 75,000.00 | C41: 50.00% | D41: =B41*C41 -> 37,500.00
A43: 2 Veículos e equipamentos - Coleta e Aterro | C43: % Depreciação | E43: 2020 | F43: 2021 | G43: 2022
A44: 1 Caminhão coleta compactador - Aquisição Junho/2015 | B44: R$ 250,000.00 | C44: 10.00% | D44: =B44*C44 -> 25,000.00 | E44: =B44*(1-0.55) -> R$112,500.00 | F44: =E44-B44*C44/2 -> R$100,000.00 | G44: =F44-B44*C44 -> R$75,000.00
A45: 1 Trator de esteira - Aquisição Janeiro/2017. Observação: Equipamento compartilhado - 60% do tempo no Aterro e 40% em outras atividades da Prefeitura. | B45: R$ 310,000.00 | C45: 10.00% | D45: =B45*C45*60% -> 18,600.00 | E45: =B45*(1-0.4)*0.6 -> R$111,600.00 | F45: =E45-B45*C45/2*0.6 -> R$102,300.00 | G45: =F45-B45*C45*0.6 -> R$83,700.00
A46: 1 Caminhão basculante - Aquisição Janeiro/2018 Observação: Equipamento compartilhado - 40% do tempo no Aterro e 60% em outras atividades da Prefeitura. | B46: R$ 170,000.00 | C46: 10.00% | D46: =B46*C46*40% -> 6,800.00 | E46: =B46*(1-0.3)*0.4 -> R$47,600.00 | F46: =E46-B46*C46/2*0.4 -> R$44,200.00 | G46: =F46-B46*C46*0.4 -> R$37,400.00
A47: TOTAL | B47: =SUM(B44:B46) -> 730,000.00 | D47: =SUM(D44:D46) -> 50,400.00 | E47: =SUM(E44:E46) -> 271,700.00 | F47: 246,500.00 | G47: 196,100.00
F48: =F40+F47 -> R$674,500.00 | G48: =G40+G47 -> R$641,725.00

Sheet Planilha1
C3: 1. Quantidade de RSU coletada (ton)
C4: 2. Quantidade de domicílios com coleta de RSU
C5: 3. Volume total de água faturada (m³)
C6: 4. Área total construída (m²)
